Workbook

Sheet Instructions
A2: Digital Equity Competitive Grant Program (DECGP) Consolidated Budget Form OMB Control Number: 0660-0055 Expiration Date: 07/31/2027
A3: Consolidated Budget Form Instructions
A4: WORKSHEET INSTRUCTIONS
A5: NOTE: This document requires enabled macros to function properly. Please ensure that macros are enabled before entering any data. You may be able to enable macros by choosing the "Enable this content" option from the Security Warning Ribbon above. If the ribbon is not visible you may have been prompted to enable macros when you opened the document as pictured here. If you elected to disable the macros, please close the document and reopen it with macros enabled.
A8: PURPOSE
A9: This form will serve as a tool to capture budget information for the Digital Equity Competitive Grant Program application. Per section IV.B.8 of the NOFO, any entity applying for the Digital Equity Competitive Grant Program must submit the Consolidated Budget Form as part of their application. Applications from Eligible Entities, including Indian Tribes, Alaska Native entities, and Native Hawaiian organizations ("Native Entities"), for the Digital Equity Competitive Grant Program must be received no later 11:59 p.m. ET on September 23, 2024. Applications from the United States Virgin Islands, Guam, American Samoa, the Commonwealth of the Northern Mariana Islands, and any other territory or possession of the United States ("U.S. Territories") must be received no later than 11:59 p.m. ET on October 22, 2024.
A10: WORKSHEET NAVIGATION
A11: 1. This workbook includes several different sheets. The first tab (this current sheet) is an instruction sheet. The second tab, "Budget Overview", is a summary sheet where data from subsequent tabs will be compiled. The next four tabs are where you will provide detailed budget information for each of the four years of the project(s) period of performance. The following tab, "(Optional) Year 5 - Evaluation," captures budget information for applicants who elect to continue to measure and evaluate the activities for one (1) year after the initial four (4) year Period of Performance. The "Matching" tab is where you will provide detailed information on each source of matching funds provided cash or in-kind that are proposed by the eligible entity or by third party contributors. The "Related Outside Funding," is where you will provide information on the source and amount of other outside funding you have received, or applied for, that fund activities to which the application relates. The final tab, "Projects Overview", is where you will provide background high level budget information for each specific intervention or activity to be funded by the program. 2. Note that gray/blue shaded cells indicate the presence of a locked calculation. Only populate blank, white cells; the budget form will then calculate any required totals on your behalf. 3. Add rows as needed in the budget sheets. If rows are added, formulas/calculations may need to be adjusted by the preparer. Do not add rows to the Instructions sheet or Budget Overview tab. 4. The totals of ALL cost categories should be exact amounts; please do not round totals.
A14: INSTRUCTIONS
A15: Please fill out the entirety of this consolidated budget form with all currently available information, including estimated values. While an application may be selected for award with the information provided at time of application, distribution of award funds is contingent upon the submission of a comprehensive and complete Consolidated Budget Form. 1. On the "Budget Overview" tab only complete the "Total expenses related to the administration of the grant" and "Total expenses related to the evaluation of the grant" fields. All other cells on this tab will auto populate based on data entered in within the subsequent tabs. 2. Populate the blank white cells under Budget Details for Year 1, Year 2, Year 3, and Year 4. Any line item costs covered by matching should be recorded in the corresponding cell (Matching Contribution). If applicable, include additional matching information in the Narrative section below, including the type (cash or in-kind) and the source. In the Narrative section indicate the value of any costs that will contribute to the administrative and evaluation cost caps. 3. If you intend to continue to measure and evaluate the activities for one (1) year after the initial four (4) year Period of Performance, populate the blank white cells in the "(Optional) Year 5 - Evaluation" tab. Any line item costs covered by matching should be recorded in the corresponding cell (Matching Contribution). If applicable, include additional matching information in the Narrative section below, including the type (cash or in-kind) and the source. In the Narrative section indicate the value of any costs that will contribute to the administrative and evaluation cost caps. 4. For the yearly tabs, all costs incurred by the grantee's subrecipients and contractors should be entered only in “E. Contractual/Subaward.” All other sections are for the costs of the grantee only. 5. Ensure all entered costs are allowable, allocable, and reasonable in accordance with the administrative requirements prescribed in 2 CFR 200. Only include costs that can be directly attributed to the project. Do not include costs that will be incurred for any other Federal financial assistance award. • Allowable refers to costs that may be charged to a grant in accordance with the cost principles prescribed in 2 CFR 200.403. • Allocable refers to costs that can be directly charged to the grant award based on the benefit provided. See 2 CFR 200.405. • Reasonable refers to actions a prudent business person would employ and are necessary to the execution of the award. See 2 CFR 200.404. 6. Populate the "Matching" tab with information on each instance of matching proposed by the eligible entity or by third party contributors in the table below. Please do NOT enter any matching funding provided by a subrecipient on this tab. All matching funding provided by a subrecipient should be entered within the "SUBRECIPIENTS" section on the Years 1-4 and (Optional) Year 5 - Evaluation tabs. 7. Populate the "Related Outside Funding" tab with information on other outside funding you have received, or applied for, that fund activities to which the application relates. 10. Lastly, fill out project-level information on the "Projects Overview" sheet. List all of the projects included in your application (i.e., the discrete activities/interventions to be implemented) and provide budget information that will be allocated to that project for each project year. Note that the information on this tab is not calculated based on other entries and must be manually input. 8. Expenses relating to the administration of the grant: A grantee may not use more than ten (10) percent of the grant amounts received under the Digital Equity Competitive Grant Program for expenses relating (directly or indirectly) to the administration of the grant under Section 60305(d)(2)(c) of the Infrastructure Investment and Jobs Act. Please enter the total expenses related to the administration of the grant in cell B22 of the "Budget Overview" tab. The percentage of the total grant amount that will be allocated towards the administration of the grant will calculate automatically. 9. Expenses relating to grant evaluation: A grantee may not use more than ten (10) percent of the grant amounts received under the Digital Equity Competitive Grant Program for expenses relating (directly or indirectly) to the evaluation of the grant under Section 60305(d)(2)(b)of the Infrastructure Investment and Jobs Act. Please enter the total expenses related to the evaluation of the grant in cell B23 of the "Budget Overview" tab. The percentage of the total grant amount that will be allocated towards the evaluation of the grant will calculate automatically. When completing this form, use the revised OMB Guidance for Federal Financial Assistance in 2 C.F.R., linked below:
A18: Guidance for Federal Financial Assistance
A19: CATEGORIES
A20: A. Personnel
A21: List personnel-related project costs solely for employees of eligible entities. All personnel costs for subrecipients and contractors must be included under E. Contractual-Subawards. "Level of Effort" (column D) refers to the amount of time based on the "Unit" (column E) selected. For example, "12" "Hours." If loaded labor rates are utilized, a description of the costs the loaded rate is comprised of must be included in the “Narrative” section below. NIST/DOC must review all components of the loaded labor rate for reasonableness and unallowable costs (e.g., fee or profit).
A22: B. Travel
A23: All listed travel must be necessary for the performance of the project and must be directly associated with the award. Mileage should be the total cost, not the amount of miles traveled. To calculate mileage, use GSA rates. Please note, every line item in this section should be broken down by trip, not by traveler. Additionally, this category is reserved only for project staff travel; trips for consultants/contractors should be shown in the "Contractual-Subawards” cost category along with consultant/contractor fees. Because these costs are associated with contract-related work, they must be under the "Contractual-Subawards" cost category. Note that federal travel regulations are contained within the applicable cost principles for all entity types. Finally, travel costs should remain consistent with travel costs incurred by an organization during normal business operations as a result of the organization's written travel policy. In the absence of a written travel policy, organizations must follow the regulations prescribed by the General Services Administration (GSA).
A24: C. Equipment
A25: Equipment means a single item of tangible, personal property (including information technology systems) having a useful life of more than one year and a per-unit acquisition cost that equals or exceeds the lesser of the capitalization level established by the non-Federal entity for financial statement purposes, or $10,000. Please refer to the applicable Federal regulations in 2 CFR 200 for specific equipment definitions and treatment. Do not include supply items under “Equipment”. Please refer to 2 CFR 200 and d. Supplies on what constitutes a supply item. Any equipment that is leased must be listed under the “Other” tab and not under “Equipment.”
A26: D. Supplies
A27: Supplies are generally defined as an item with an acquisition cost of $10,000 or less and a useful life expectancy of less than one year. Supplies are generally consumed during the project performance. Please refer to the applicable Federal regulations in 2 CFR 200 for specific supplies definitions and treatment. A computing device is a supply if the acquisition cost is less than the lesser of the capitalization level established by the non-Federal entity for financial statement purposes or $10,000, regardless of the length of its useful life. Note that Supply items must be direct costs to the project in this budget category and not duplicate supply costs included in the indirect pool, which is the basis of the indirect rate applied for this project. Supply costs must be allocable specifically to the project. If supply items and costs are ambiguous in nature, contact your DOC representative for proper categorization.
A28: E. Contractual-Subawards
A29: List all costs related to subrecipients and contractors. For partnership applications, include costs related to partners in this category only if the partner(s) will be a subrecipient(s). Subrecipients (sub-awardees): A subrecipient is a legal entity to which a sub-award is made, who has performance measured against whether the objectives of the Federal program are met, is responsible for programmatic decision-making, must adhere to applicable Federal program compliance requirements, and uses the Federal funds to carry out a program of the organization. Not all characteristics may be present, and judgment must be used to determine the status of subrecipient vs. contractor. Contractors: A contractor is a legal entity contracted to provide goods and services within normal business operations, provides similar goods or services to many different purchasers, operates in a competitive environment, provides goods or services that are ancillary to the operation of the Federal program, and is not subject to compliance requirements of the Federal program. Not all characteristics may be present, and judgment must be used to determine the status of subrecipient vs. contractor. List all contractors supplying commercial supplies or services used to support the project. In determining whether an agreement between a pass-through entity and another non-Federal entity casts the latter as a subrecipient or a contractor, the substance of the relationship is more important than the form of the agreement. Please refer to 2 CFR 200.331 Subrecipient and contractor determinations for more information on making a determination on subrecipient vs contractor. Use the narrative space to explain how the costs associated with each line item relate to the implementation of the project as outlined in the proposal being submitted. Justifications should be concise and written so that someone not specifically familiar with the project can conceptually understand the rationale, purpose, and calculation of the anticipated costs identified. Explain why items are essential in relation to the aims of the project and meet the goals of the project. Do not merely restate the proposed expenditure. The specific items in the subrecipient budget(s) should not be explained here.
A30: F. Construction
A31: Provide a description of the construction project elements and estimates of the cost. Minor repairs or renovations may be allowable and should be classified in the "Other" category.
A32: G. Other
A33: Other direct costs are direct cost items required for the project that do not fit clearly into other categories. These direct costs must not be included in the indirect costs (for which the indirect rate is being applied for this project). Examples are: tuition, printing costs, etc., which can be directly charged to the project and are not duplicated in indirect costs (overhead costs).
A34: H. Indirect
A35: Indirect costs means those costs incurred for a common or joint purpose benefitting more than one cost objective, and not readily assignable to the cost objectives specifically benefitted, without effort disproportionate to the results achieved. Indirect costs may be charged to the award if the applicant has a Federally approved indirect cost rate or the applicant has never received a negotiated indirect cost rate and elects to charge a de minimis rate of up to 15 percent of modified total direct costs (MTDC), which can be used indefinitely. MTDC means all direct salaries and wages, applicable fringe benefits, materials and supplies, services, travel, and up to the first $50,000 of each sub-award (regardless of the period of performance of the sub-awards under the award). MTDC excludes equipment, capital expenditures, charges for patient care, rental costs, tuition remission, scholarships and fellowships, participant support costs, and the portion of each subaward in excess of $50,000. Indirect costs that are related to the administration of the Eligible Entity's grant count toward the statutory ten percent cap on administrative expenses. By their nature, indirect costs are those recipient costs that are not directly associated with the recipient's execution of its grant-funded project but that are necessary to the operation of the organization and the performance of its programs. A grantee should describe the types of indirect costs that it will charge to the grant. A grantee can never double-charge a cost as both a direct and an indirect administrative cost. The budget provided by the Eligible Entity must explain how it applied or calculated its administrative costs and demonstrate that its combined direct and indirect administrative costs are at or under the 10% statutory limit. It is the Eligible Entity's responsibility to determine whether their indirect costs include such expenses subject to the cap, and account for them appropriately. The Eligible Entity must document such accounting and make it available to NTIA and NIST if requested. NOTE: A Recipient who elects to employ the de minimis Indirect Cost rate cannot claim resulting costs as a Cost Share contribution, nor can the Recipient claim "unrecovered indirect costs" as a Cost Share contribution. Neither of these costs can be reflected as actual indirect cost rates realized by the organization, and therefore are not verifiable in the Recipient records as required by Federal Regulation (2 C.F.R. §200.306(b)(1)).
A36: NOTES ON MATCHING
A37: Applicants shall identify funds used to meet the statutory ten percent match requirement by populating the “Matching Contribution” column included in each budget category. Any line item costs covered by cost sharing or matching should be recorded in the corresponding cell (“Matching Contribution”). If applicable, include additional information in the Narrative section below, including the type (cash or in-kind) and the source. 1. Cash Contributions - Cash contributions means the grantee's cash outlay, including the outlay of money contributed to the grantee or subgrantee by other public agencies and institutions, and private organizations and individuals. 2. In-Kind Contributions - Contributions, which may include third-party in-kind contributions, are non-cash donations of property, goods or services, that benefit a federally assisted project and which may count toward satisfying the non-federal matching requirement of a project's total budgeted costs when such contributions meet certain criteria. NTIA encourages applicants to thoroughly consider potential sources of in-kind contributions that, depending on the particular property or service and the applicable federal cost principles, could include employee or volunteer services; equipment; supplies; indirect costs; computer hardware and software; and use of facilities. 3. All matching must be necessary to the performance of the project. If questions exist, consult your NTIA contact before filling out In-Kind cost share in this section. 4. Contractors may not provide cost share. Any partial donation of goods or services is considered a discount and is not allowable. 5. Fee or profit, including foregone fee or profit, are not allowable as project costs (including cost share) under any resulting award. The project may only incur those costs that are allowable and allocable to the project (including cost share) as determined in accordance with the applicable cost principles prescribed in 2 CFR Part 200. 6. A Recipient who elects to employ the de minimis Indirect Cost rate cannot claim the resulting indirect costs as a Cost Share contribution. 7. A Recipient cannot claim "unrecovered indirect costs" as a Cost Share contribution.

Sheet Budget Overview
A1: Budget Overview
A2: NOTE: All values in rows 5-20 are locked. Any errors found should be fixed on the corresponding budget detail tab. Cells B22 and B23 are not locked and should be used to specify the total expenses how much of the total proposed grant amount will be allocated towards administration and evaluation of the program. A percentage allocation will be automatically calculated, and must not exceed 10% of the total grant award (See IIJA Section 60305(d)(2)). Cells B25, B26, and B27 are locked and will populate totals for matching contribution based on information input in the corresponding tabs. The percentage of the total award matched by non-federal contributions will be automatically calculated; note that statutorily at least a 10% match must be provided. Cell B29 is also locked and will populate the total additional supplementary funds based on information input in the corresponding tabs.
B3: Fiscal / Project Year 1 | E3: Fiscal / Project Year 2 | H3: Fiscal / Project Year 3 | K3: Fiscal / Project Year 4 | N3: (Optional) Year 5 - Evaluation Period | Q3: Totals
A4: Budget Category | B4: Federal Request | C4: Matching Contribution | D4: Total | E4: Federal Request | F4: Matching Contribution | G4: Total | H4: Federal Request | I4: Matching Contribution | J4: Total | K4: Federal Request | L4: Matching Contribution | M4: Total | N4: Federal Request | O4: Matching Contribution | P4: Total | Q4: Total Federal Request | R4: Total Matching Contribution | S4: Total(s)
A5: A. Personnel | B5: ='Year 1'!$K$21 -> 130200 | C5: ='Year 1'!$J$21 -> 60000 | D5: =SUM(B5:C5) -> 190200 | E5: ='Year 2'!$K$21 -> 130200 | F5: ='Year 2'!$J$21 -> 60000 | G5: =SUM(E5:F5) -> 190200 | H5: ='Year 3'!$K$23 -> 130200 | I5: ='Year 3'!$J$23 -> 60000 | J5: =SUM(H5:I5) -> 190200 | K5: ='Year 4'!$K$17 -> 130200 | L5: ='Year 4'!$J$17 -> 60000 | M5: =SUM(K5:L5) -> 190200 | N5: ='(Optional) Year 5 - Evaluation'!$K$27 -> 33500 | O5: ='(Optional) Year 5 - Evaluation'!$J$27 -> 25000 | P5: =SUM(N5,O5) -> 58500 | Q5: =SUM(B5,E5,H5,K5,N5) -> 554300 | R5: =SUM(C5,F5,I5,L5,O5) -> 265000 | S5: =SUM(D5,G5,J5,M5,P5) -> 819300 | T5: =SUM(F5,I5,L5,#REF!) -> 
A6: Salary | B6: ='Year 1'!$G$21 -> 180000 | D6: =SUM(B6:C6) -> 180000 | E6: ='Year 2'!$G$21 -> 180000 | G6: =SUM(E6:F6) -> 180000 | H6: ='Year 3'!$G$23 -> 180000 | J6: =SUM(H6:I6) -> 180000 | K6: ='Year 4'!$G$17 -> 180000 | M6: =SUM(K6:L6) -> 180000 | N6: ='(Optional) Year 5 - Evaluation'!$G$27 -> 50000 | P6: =SUM(N6,O6) -> 50000 | Q6: =SUM(B6,E6,H6,K6,N6) -> 770000 | S6: =SUM(D6,G6,J6,M6,P6) -> 770000 | T6: =SUM(F6,I6,L6,#REF!) -> 
A7: Fringe | B7: ='Year 1'!$H$21 -> 10200 | D7: 10200 | E7: ='Year 2'!$H$21 -> 10200 | G7: 10200 | H7: ='Year 3'!$H$23 -> 10200 | J7: 10200 | K7: ='Year 4'!$H$17 -> 10200 | M7: 10200 | N7: ='(Optional) Year 5 - Evaluation'!$H$27 -> 8500 | P7: 8500 | Q7: 49300 | S7: 49300 | T7: =SUM(F7,I7,L7,#REF!) -> 
A8: B. Travel | B8: ='Year 1'!$M$45 -> 1883.75 | C8: ='Year 1'!$L$45 -> 3247.5 | D8: 5131.25 | E8: ='Year 2'!$M$45 -> 1883.75 | F8: ='Year 2'!$L$45 -> 3247.5 | G8: 5131.25 | H8: ='Year 3'!$M$47 -> 1883.75 | I8: ='Year 3'!$L$47 -> 3247.5 | J8: 5131.25 | K8: ='Year 4'!$M$41 -> 1883.75 | L8: ='Year 4'!$L$41 -> 3247.5 | M8: 5131.25 | N8: ='(Optional) Year 5 - Evaluation'!$M$51 -> 558 | O8: ='(Optional) Year 5 - Evaluation'!$L$51 -> 0 | P8: 558 | Q8: 8093 | R8: =SUM(C8,F8,I8,L8,O8) -> 12990 | S8: 21083 | T8: =SUM(F8,I8,L8,#REF!) -> 
A9: C. Equipment | B9: ='Year 1'!$E$69 -> 12614.03 | C9: ='Year 1'!$D$69 -> 0 | D9: 12614.03 | E9: ='Year 2'!$E$69 -> 0 | F9: ='Year 2'!$D$69 -> 0 | G9: 0 | H9: ='Year 3'!$E$71 -> 0 | I9: ='Year 3'!$D$71 -> 0 | J9: 0 | K9: ='Year 4'!$E$64 -> 0 | L9: ='Year 4'!$D$64 -> 0 | M9: 0 | N9: ='(Optional) Year 5 - Evaluation'!$E$75 -> 0 | O9: ='(Optional) Year 5 - Evaluation'!$D$75 -> 0 | P9: 0 | Q9: 12614.03 | R9: 0 | S9: 12614.03 | T9: =SUM(F9,I9,L9,#REF!) -> 
A10: D. Supplies | B10: ='Year 1'!$E$95 -> 2299.88 | C10: ='Year 1'!$D$95 -> 0 | D10: 2299.88 | E10: ='Year 2'!$E$92 -> 299.9 | F10: ='Year 2'!$D$92 -> 0 | G10: 299.9 | H10: ='Year 3'!$E$94 -> 299.9 | I10: ='Year 3'!$D$94 -> 0 | J10: 299.9 | K10: ='Year 4'!$E$88 -> 299.9 | L10: ='Year 4'!$D$88 -> 0 | M10: 299.9 | N10: ='(Optional) Year 5 - Evaluation'!$E$99 -> 0 | O10: ='(Optional) Year 5 - Evaluation'!$D$99 -> 0 | P10: 0 | Q10: 3199.58 | R10: 0 | S10: 3199.58 | T10: =SUM(F10,I10,L10,#REF!) -> 
A11: E. Contractual/Subawards | B11: ='Year 1'!$H$146 -> 2600000 | C11: ='Year 1'!$E$144 -> 250000 | D11: 2850000 | E11: ='Year 2'!$H$143 -> 2600000 | F11: ='Year 2'!$E$141 -> 250000 | G11: 2850000 | H11: ='Year 3'!$H$141 -> 1800000 | I11: ='Year 3'!$E$139 -> 250000 | J11: 2050000 | K11: ='Year 4'!$H$136 -> 1650000 | L11: ='Year 4'!$E$134 -> 250000 | M11: 1900000 | N11: ='(Optional) Year 5 - Evaluation'!$H$147 -> 0 | O11: ='(Optional) Year 5 - Evaluation'!$E$145 -> 0 | P11: 0 | Q11: 8650000 | R11: 1000000 | S11: 9650000 | T11: =SUM(F11,I11,L11,#REF!) -> 
A12: Contractors | B12: ='Year 1'!$E$124 -> 1150000 | D12: 1150000 | E12: ='Year 2'!$E$122 -> 1150000 | G12: 1150000 | H12: ='Year 3'!$E$120 -> 650000 | J12: 650000 | K12: ='Year 4'!$E$114 -> 500000 | M12: 500000 | N12: ='(Optional) Year 5 - Evaluation'!$E$124 -> 0 | P12: 0 | Q12: 3450000 | S12: =SUM(D12,G12,J12,M12,P12) -> 3450000 | T12: =SUM(F12,I12,L12,#REF!) -> 
A13: Subrecipients | B13: ='Year 1'!$H$144 -> 1450000 | C13: ='Year 1'!$E$144 -> 250000 | D13: 1700000 | E13: ='Year 2'!$H$141 -> 1450000 | F13: ='Year 2'!$E$141 -> 250000 | G13: 1700000 | H13: ='Year 3'!$H$139 -> 1150000 | I13: ='Year 3'!$E$139 -> 250000 | J13: 1400000 | K13: ='Year 4'!$H$134 -> 1150000 | L13: ='Year 4'!$E$134 -> 250000 | M13: 1400000 | N13: ='(Optional) Year 5 - Evaluation'!$H$145 -> 0 | O13: ='(Optional) Year 5 - Evaluation'!$E$145 -> 0 | P13: 0 | Q13: 5200000 | R13: 1000000 | S13: 6200000 | T13: =SUM(F13,I13,L13,#REF!) -> 
A14: F. Construction | B14: ='Year 1'!$F$170 -> 9333.17 | C14: ='Year 1'!$E$170 -> 0 | D14: 9333.17 | E14: ='Year 2'!$F$169 -> 0 | F14: ='Year 2'!$E$169 -> 0 | G14: 0 | H14: ='Year 3'!$F$165 -> 0 | I14: ='Year 3'!$E$165 -> 0 | J14: 0 | K14: ='Year 4'!$F$160 -> 0 | L14: ='Year 4'!$E$160 -> 0 | M14: 0 | N14: ='(Optional) Year 5 - Evaluation'!$F$172 -> 0 | O14: ='(Optional) Year 5 - Evaluation'!$E$172 -> 0 | P14: 0 | Q14: 9333.17 | R14: 0 | S14: 9333.17 | T14: =SUM(F14,I14,L14,#REF!) -> 
A15: G. Other Direct Costs | B15: ='Year 1'!$E$194 -> 3700 | C15: ='Year 1'!$D$194 -> 3500 | D15: 7200 | E15: ='Year 2'!$E$193 -> 3700 | F15: ='Year 2'!$D$193 -> 3500 | G15: 7200 | H15: ='Year 3'!$E$189 -> 3700 | I15: ='Year 3'!$D$189 -> 3500 | J15: 7200 | K15: ='Year 4'!$E$184 -> 3700 | L15: ='Year 4'!$D$184 -> 3500 | M15: 7200 | N15: ='(Optional) Year 5 - Evaluation'!$E$196 -> 0 | O15: ='(Optional) Year 5 - Evaluation'!$D$196 -> 0 | P15: 0 | Q15: 14800 | R15: 14000 | S15: 28800 | T15: =SUM(F15,I15,L15,#REF!) -> 
A16: TOTAL Direct Costs | B16: =SUM(B5:B15)-SUM(B6:B7,B12:B13) -> 2760030.83 | C16: 316747.5 | D16: 3076778.33 | E16: =SUM(E5:E15)-SUM(E6:E7,E12:E13) -> 2736083.65 | F16: 316747.5 | G16: =SUM(G5:G15)-SUM(G6:G7,G12:G13) -> 3052831.15 | H16: 1936083.65 | I16: 316747.5 | J16: 2252831.15 | K16: 1786083.65 | L16: 316747.5 | M16: 2102831.15 | N16: =SUM(N5:N15)-SUM(N6:N7,N12:N13) -> 34058 | O16: =SUM(O5:O15)-SUM(O6:O7,O12:O13) -> 25000 | P16: =SUM(P5:P15)-SUM(P6:P7,P12:P13) -> 59058 | Q16: 9252339.78 | R16: 1291990 | S16: 10544329.78 | T16: =SUM(F16,I16,L16,#REF!) -> 
T17: =SUM(F17,I17,L17,#REF!) -> 
A18: H. Total Indirect Costs | B18: ='Year 1'!$G$218 -> 24726 | C18: ='Year 1'!$F$218 -> 0 | D18: =SUM(B18,C18) -> 24726 | E18: ='Year 2'!$G$217 -> 24726 | F18: ='Year 2'!$F$217 -> 0 | G18: =SUM(E18,F18) -> 24726 | H18: ='Year 3'!$G$213 -> 24726 | I18: ='Year 3'!$F$213 -> 0 | J18: =SUM(H18,I18) -> 24726 | K18: ='Year 4'!$G$208 -> 24726 | L18: ='Year 4'!$F$208 -> 0 | M18: =SUM(K18,L18) -> 24726 | N18: ='(Optional) Year 5 - Evaluation'!$G$220 -> 0 | O18: ='(Optional) Year 5 - Evaluation'!$F$220 -> 0 | P18: =SUM(N18,O18) -> 0 | Q18: =SUM(B18,E18,H18,K18,N18) -> 98904 | R18: =SUM(C18,F18,I18,L18,O18) -> 0 | S18: =SUM(D18,G18,J18,M18,P18) -> 98904 | T18: =SUM(F18,I18,L18,#REF!) -> 
T19: =SUM(F19,I19,L19,#REF!) -> 
A20: Total Costs | D20: =SUM(D16,D18) -> 3101504.33 | G20: =SUM(G16,G18) -> 3077557.15 | J20: =SUM(J16,J18) -> 2277557.15 | M20: =SUM(M16,M18) -> 2127557.15 | P20: =SUM(P16,P18) -> 59058 | Q20: =SUM(Q16,Q18) -> 9351243.78 | R20: =SUM(R16,R18) -> 1291990 | S20: =S16+S18 -> 10643233.78 | T20: =SUM(F20,I20,L20,#REF!) -> 
A22: Total expenses related to the administration of the grant | B22: 681057.63 | C22: Percentage of the total award that will be allocated to the administration of the grant | E22: =IFERROR(B22/$S$20,0) -> 0.06398972757
A23: Total expenses related to the evaluation of the grant | B23: 87138 | C23: Percentage of the total award that will be allocated to the evaluation of the grant | E23: =IFERROR(B23/$S$20,0) -> 0.008187173354
A25: Total Applicant/Third Party Matching Contribution (Please note, this value should match the "Total Matching" value on the "Matching" tab - cell E13.) | B25: =(R20-R13) -> 291990
A26: Total Subrecipient Match | B26: =R13 -> 1000000
A27: Total Matching Contribution | B27: =R20 -> 1291990 | C27: Percentage of the total award matched by non-federal contributions | E27: =IFERROR(B27/S20,0) -> 0.1213907377 | F27: The statutory matching requirement for this Program is at least 10% of the total project cost. This cell will turn red if this percentage is calculated as less than 10%.
A29: Total Outside Funding | B29: ='Related Outside Funding'!E10 -> 500000

Sheet Year 1
A1: Budget Detail - Year 1
A4: A. Personnel
A6: Position Title | B6: Key Personnel | C6: Relevant Specific Project(s) | D6: Level of Effort | E6: Unit | F6: Unit Cost | G6: Subtotal Salary | H6: Fringe Benefits | I6: Fringe Rate | J6: Matching Contribution | K6: Federal Request | L6: Total | M6: Column2 | N6: Column3 | O6: Column4 | P6: Column5 | Q6: Column6
A7: Grant Manager | B7: Yes | C7: Project A | D7: 1 | E7: Annual | F7: 60000 | G7: =D7*F7 -> 60000 | H7: =Table1[[#This Row],[Subtotal Salary]]*Table1[[#This Row],[Fringe Rate]] -> 10200 | I7: 0.17 | J7: 0 | K7: =G7+H7-J7 -> 70200 | L7: =J7+K7 -> 70200
A8: Legal Staff | B8: No | D8: 400 | E8: Hour | F8: 300 | G8: =D8*F8 -> 120000 | H8: =Table1[[#This Row],[Subtotal Salary]]*Table1[[#This Row],[Fringe Rate]] -> 0 | I8: 0 | J8: 60000 | K8: 60000 | L8: 120000
G9: 0 | H9: =Table1[[#This Row],[Subtotal Salary]]*Table1[[#This Row],[Fringe Rate]] -> 0 | K9: 0 | L9: 0
G10: 0 | H10: =Table1[[#This Row],[Subtotal Salary]]*Table1[[#This Row],[Fringe Rate]] -> 0 | K10: 0 | L10: 0
G11: 0 | H11: =Table1[[#This Row],[Subtotal Salary]]*Table1[[#This Row],[Fringe Rate]] -> 0 | K11: 0 | L11: 0
G12: 0 | H12: =Table1[[#This Row],[Subtotal Salary]]*Table1[[#This Row],[Fringe Rate]] -> 0 | K12: 0 | L12: 0
G13: =D13*F13 -> 0 | H13: =Table1[[#This Row],[Subtotal Salary]]*Table1[[#This Row],[Fringe Rate]] -> 0 | K13: 0 | L13: 0
G14: 0 | H14: =Table1[[#This Row],[Subtotal Salary]]*Table1[[#This Row],[Fringe Rate]] -> 0 | K14: 0 | L14: 0
G15: 0 | H15: =Table1[[#This Row],[Subtotal Salary]]*Table1[[#This Row],[Fringe Rate]] -> 0 | K15: 0 | L15: 0
G16: =D16*F16 -> 0 | H16: =Table1[[#This Row],[Subtotal Salary]]*Table1[[#This Row],[Fringe Rate]] -> 0 | K16: 0 | L16: 0
G17: 0 | H17: =Table1[[#This Row],[Subtotal Salary]]*Table1[[#This Row],[Fringe Rate]] -> 0 | K17: 0 | L17: 0
G18: 0 | H18: =Table1[[#This Row],[Subtotal Salary]]*Table1[[#This Row],[Fringe Rate]] -> 0 | K18: 0 | L18: 0
G19: 0 | H19: =Table1[[#This Row],[Subtotal Salary]]*Table1[[#This Row],[Fringe Rate]] -> 0 | K19: 0 | L19: 0
G20: =D20*F20 -> 0 | H20: =Table1[[#This Row],[Subtotal Salary]]*Table1[[#This Row],[Fringe Rate]] -> 0 | K20: 0 | L20: 0
A21: TOTAL PERSONNEL | G21: =SUM(G7:G20) -> 180000 | H21: =SUM(H7:H20) -> 10200 | J21: =SUM(J7:J20) -> 60000 | K21: =SUM(K7:K20) -> 130200 | L21: =SUM(L7:L20) -> 190200
A22: Narrative (as needed)
A23: The Grant Manager (FTE) will be responsible for completing grant reports; archiving grant-related documents and documentation; preparing for, and supporting, any activities related to grant monitoring, audit or compliance requests; compiling, reconciling, and managing the submission of subgrantee reports and documents. The grant manager will spend 70% of their time ($70,200 x 0.70 = $49,140) on programmatic activities for Project A, 20% of their time ($70,200 x 0.20 = $14,040) on grants administration, and 10% of their time ($70,200 x 0.10 = $7,020) on evaluation. Fringe benefits for this employee include health and dental care, life insurance, long-term disability, retirement, workers compensation, and agency personnel charges. Legal staff (FTE) will be responsible for drafting, execution, and filing fees of legal agreements and Memorandum of Understandings (MOUs) between organizations involved in the grant, including subgrantees. Legal hours also include time to conduct legal reviews for all contracts. Although this employee is FTE, they will only spend 70% of their time on Competitive Grant Program activities. The hourly rate has been prorated to reflect the division of effort ($428.57 * .7 = $300 pro-rated hourly rate). The legal staff will spend 100% of their time on grants administration. The applicant will provide $60,000 as a cash match to cover half of the legal staff's level of effort.
A26: B. Travel
A29: Purpose of Travel/Justification of Need | B29: Type of Travel (Domestic or International) | C29: No. of Days | D29: No. of Travelers | E29: Lodging per Traveler/per night | F29: Flight Cost per Traveler | G29: Vehicle Cost per Traveler | H29: Per Diem per Traveler | I29: Mileage Cost | J29: Miscellaneous | K29: Cost per Trip | L29: Matching Contribution | M29: Federal Request | N29: Total | O29: Used Federal Cost Estimation Tool? | P29: Basis of cost | Q29: Column1
A30: Digital Literacy Training Funds are requested for 2 employees to travel to X city for the Annual Digital Literacy Training series kick-off. | B30: Domestic | C30: 5 | D30: 2 | E30: 210 | F30: 120 | G30: 100 | H30: 201 | I30: 146.25 | J30: 60 | K30: =(((C30-1)*E30)*D30)+(D30*F30)+(D30*G30)+(D30*H30*C30)+I30+J30 -> 4336.25 | L30: 2850 | M30: =K30-L30 -> 1486.25 | N30: =L30+M30 -> 4336.25 | O30: Yes | P30: Lodging per Traveler/per night was calculated using the average price of X city for the planned kick-off dates. Figures are accurate as of application submission date. Flight per Traveler was calculated using the average price of an economy ticket from Y city to X city for the planned kick-off dates. Figures are accurate as of application submission date. Vehicle per Traveler was calculated using the average price of a basic car rental in X city. The total includes the flat price of the vehicle itself ($90) and insurance ($10): $90 + $10 = $100 Total Cost for Vehicle per Traveler). Per Diem per Traveler was calculated using the current GSA rates (https://www.gsa.gov/travel/plan-book/per-diem-rates). The listed $201 accounts for the cost of one traveler for one day. Mileage was calculated using the accompanying per mile cost for a basic car rental in Y city ($0.585 per mile) and multiplying it by the expected number of miles for the entire trip (250 miles): $0.59 * 250 = $146.25 Mileage cost for the trip. Miscellaneous costs account for potential variable costs such as parking, internet access, etc. with rates researched online for X city.
A31: Subgrantee Monitoring Funds are requested for 1 employee to travel to Z city to monitor subgrantee activities. | B31: Domestic | C31: 2 | D31: 1 | E31: 150 | F31: 0 | G31: 100 | H31: 79 | I31: 120 | J31: 30 | K31: =(((C31-1)*E31)*D31)+(D31*F31)+(D31*G31)+(D31*H31*C30)+I31+J31 -> 795 | L31: 397.5 | M31: 397.5 | N31: 795 | O31: Yes | P31: Lodging per Traveler/per night was calculated using the average price of Z city for the estimated monitoring dates. Figures are accurate as of application submission date. Flights will not be required. Vehicle per Traveler was calculated using the average price of a basic car rental in Z city. The total includes the flat price of the vehicle itself ($90) and insurance ($10): $90 + $10 = $100 Total Cost for Vehicle per Traveler). Per Diem per Traveler was calculated using the current GSA rates (https://www.gsa.gov/travel/plan-book/per-diem-rates). The listed $79 accounts for the cost of one traveler for one day. Mileage was calculated using the accompanying per mile cost for a basic car rental in Z city ($0.40 per mile) and multiplying it by the expected number of miles for the entire trip (300 miles): $0.40*300 = $120 Mileage cost for the trip. Miscellaneous costs account for potential variable costs such as parking, internet access, etc. with rates researched online for Z city.
K32: =(((C32-1)*E32)*D32)+(D32*F32)+(D32*G32)+(D32*H32*C32)+I32+J32 -> 0 | M32: 0 | N32: 0
K33: =(((C33-1)*E33)*D33)+(D33*F33)+(D33*G33)+(D33*H33*C33)+I33+J33 -> 0 | M33: 0 | N33: 0
K34: 0 | M34: 0 | N34: 0
K35: 0 | M35: 0 | N35: 0
K36: 0 | M36: 0 | N36: 0
K37: 0 | M37: 0 | N37: 0
K38: 0 | M38: 0 | N38: 0
K39: 0 | M39: 0 | N39: 0
K40: 0 | M40: 0 | N40: 0
K41: 0 | M41: 0 | N41: 0
K42: 0 | M42: 0 | N42: 0
K43: 0 | M43: 0 | N43: 0
K44: 0 | M44: 0 | N44: 0
A45: TOTAL TRAVEL | L45: =SUM(L30:L44) -> 3247.5 | M45: =SUM(M30:M44) -> 1883.75 | N45: =SUM(N30:N44) -> 5131.25
A46: Narrative (as needed)
A47: Digital Literacy Training costs will be 100% for programmatic purposes in support of Project A (no costs towards administration or evaluation). The applicant will provide match at the value of per diem ($201*2*5 = $2010) plus lodging ($210*4 = $840) (total match provided will be $2,850). The Subgrantee Monitoring trip will be entirely for administrative purposes. The applicant will provide a 50% cash match for the trip ($795*0.5 = $397.5).
A50: C. Equipment
A53: Equipment Item | B53: Qty | C53: Unit Cost | D53: Matching Contribution | E53: Federal Request | F53: Total Cost | G53: Basis of Cost | H53: Column1 | I53: Column2 | J53: Column3 | K53: Column4 | L53: Column5 | M53: Column6 | N53: Column7 | O53: Column8 | P53: Column9 | Q53: Column10
A54: Computer Server | B54: 1 | C54: 12614.03 | E54: =(B54*C54)-D54 -> 12614.03 | F54: =D54+E54 -> 12614.03 | G54: Online listing at [list URL here]
E55: 0 | F55: 0
E56: 0 | F56: 0
E57: 0 | F57: 0
E58: 0 | F58: 0
E59: 0 | F59: 0
E60: 0 | F60: 0
E61: 0 | F61: 0
E62: 0 | F62: 0
E63: 0 | F63: 0
E64: 0 | F64: 0
E65: 0 | F65: 0
E66: 0 | F66: 0
E67: 0 | F67: 0
E68: 0 | F68: 0
A69: TOTAL EQUIPMENT | D69: =SUM(D54:D68) -> 0 | E69: =SUM(E54:E68) -> 12614.03 | F69: =SUM(F54:F68) -> 12614.03
A70: Narrative (as needed)
A71: The server will run IT applications and provide storage. The server will be required for office staff to execute all program objectives. The server will be allocable 100% to the administrative cost cap.
A74: D. Supplies
A77: General Category of Supplies | B77: Qty | C77: Unit Cost | D77: Matching Contribution | E77: Federal Request | F77: Total Cost | G77: Basis of Cost | H77: Column1 | I77: Column2 | J77: Column3 | K77: Column4 | L77: Column5 | M77: Column6 | N77: Column7 | O77: Column8 | P77: Column9 | Q77: Column10
A78: Tablet Computers | B78: 2 | C78: 999.99 | D78: 0 | E78: =(B78*C78)-D78 -> 1999.98 | F78: =D78+E78 -> 1999.98 | G78: Online listing at [list URL here]
A79: Office Supply Set | B79: 10 | C79: 29.99 | D79: 0 | E79: 299.9 | F79: 299.9 | G79: Online listing at [list URL here]
E80: 0 | F80: 0
E81: 0 | F81: 0
E82: 0 | F82: 0
E83: 0 | F83: 0
E84: 0 | F84: 0
E85: 0 | F85: 0
E86: 0 | F86: 0
E87: 0 | F87: 0
E88: 0 | F88: 0
E89: 0 | F89: 0
E90: 0 | F90: 0
E91: 0 | F91: 0
E92: 0 | F92: 0
E93: 0 | F93: 0
E94: 0 | F94: 0
A95: TOTAL SUPPLIES | D95: =SUM(D78:D94) -> 0 | E95: =SUM(E78:E94) -> 2299.88 | F95: =SUM(F78:F94) -> 2299.88
A96: Narrative (as needed)
A97: Two (2) tablets will be used by office staff to help develop digital literacy training. 90% of each tablet's use will be programmatic towards Project A (($999.99*0.9)*2 = $1799.98) and 10% of each tablet's use (($999.99*0.1)*2 = $200) will be administrative. Office supplies will be used by office staff to carry out project objectives. 100% of the supplies will go towards administrative costs.
A100: E. Contractual-Subawards
A102: CONTRACTORS
A103: Contractor Name / Organization | B103: Project Description | C103: Basis of cost | D103: Value ($) | E103: Federal Request | F103: Total Cost | G103: Column11 | H103: Column1 | I103: Column2 | J103: Column3 | K103: Column4 | L103: Column5 | M103: Column6 | N103: Column7 | O103: Column8 | P103: Column9 | Q103: Column10
A104: Y City General Contractor | B104: Y City General Contractor is a general contractor who will assist with building 1500 sq foot public access computing center additions across libraries in the county, as part of Project A. | C104: Market research on general contractor quotes | D104: 750000 | E104: =F104 -> 750000 | F104: =D104 -> 750000 | P104: Column10
A105: Digital Literacy Advisors, LLC | B105: Digital Literacy Advisors, LLC will provide consultants to assist with digital literacy strategy development in support of Project C. | C105: Market research on consultant quotes | D105: 400000 | E105: 400000 | F105: 400000 | P105: Column11
E106: 0 | F106: 0 | P106: Column12
E107: 0 | F107: 0 | P107: Column13
E108: 0 | F108: 0 | P108: Column14
E109: 0 | F109: 0 | P109: Column15
E110: 0 | F110: 0 | P110: Column16
E111: 0 | F111: 0 | P111: Column17
E112: 0 | F112: 0 | P112: Column18
E113: 0 | F113: 0 | P113: Column19
E114: 0 | F114: 0 | P114: Column20
E115: 0 | F115: 0 | P115: Column21
E116: 0 | F116: 0 | P116: Column22
E117: 0 | F117: 0 | P117: Column23
E118: 0 | F118: 0 | P118: Column24
E119: 0 | F119: 0 | P119: Column25
E120: 0 | F120: 0
E121: 0 | F121: 0
E122: 0 | F122: 0
E123: 0 | F123: 0
A124: SUBTOTAL CONTRACTORS | E124: =SUM(E104:E123) -> 1150000 | F124: =SUM(F104:F123) -> 1150000
A126: SUBRECIPIENTS
A127: Subrecipient Name / Organization | B127: Project Description | C127: Value of Subaward ($) | D127: Basis of Cost | E127: Matching Contribution | F127: Type (Cash, In-Kind, or N/A) | G127: Source | H127: Federal Request | I127: Total Cost | J127: Column8 | K127: Column1 | L127: Column2 | M127: Column3 | N127: Column4 | O127: Column5 | P127: Column6 | Q127: Column7
A128: X City Public Library | B128: This subrecipient will be responsible for executing Project B. | C128: 700000 | D128: Estimated cost of Project B | E128: 150000 | F128: In-Kind | G128: Subrecipient | H128: =C128 -> 700000 | I128: =(E128+H128) -> 850000
A129: State University | B129: This subrecipient will be responsible for implementing part of Project C. | C129: 750000 | D129: Estimated cost of Project C | E129: 100000 | F129: Cash | G129: Subrecipient | H129: =C129 -> 750000 | I129: 850000
H130: 0 | I130: 0
H131: 0 | I131: 0
H132: 0 | I132: 0
H133: 0 | I133: 0
H134: 0 | I134: 0
H135: 0 | I135: 0
H136: 0 | I136: 0
H137: 0 | I137: 0
H138: 0 | I138: 0
H139: 0 | I139: 0
H140: 0 | I140: 0
H141: 0 | I141: 0
H142: 0 | I142: 0
H143: 0 | I143: 0
A144: SUBTOTAL SUBRECIPIENTS | E144: =SUM(Table7[Matching Contribution]) -> 250000 | H144: =SUM(H128:H143) -> 1450000 | I144: =SUM(I128:I143) -> 1700000
A146: TOTAL CONTRACTUAL-SUBAWARDS | E146: =E144 -> 250000 | H146: =E124+H144 -> 2600000 | I146: =F124+I144 -> 2850000
A147: Narrative (as needed)
A148: X City Public Library will provide in-kind contributions in terms of facilities valued at $150,000.
A151: F. Construction
A154: Purpose | B154: General Description | C154: # of Items | D154: Cost | E154: Matching Contribution | F154: Federal Request | G154: Total Cost | H154: Column1 | I154: Column2 | J154: Column3 | K154: Column4 | L154: Column5 | M154: Column6 | N154: Column7 | O154: Column8 | P154: Column9 | Q154: Column10
A155: Computer lab addition at Y City Public Library | B155: Sheet of drywall | C155: 58 | D155: 15 | F155: =(C155*D155)-E155 -> 870 | G155: =E155+F155 -> 870
A156: Computer lab addition at Y City Public Library | B156: 40 Sq foot roll of insulation | C156: 38 | D156: 23.47 | F156: 891.86 | G156: 891.86
A157: Computer lab addition at Y City Public Library | B157: 26.62 sq foot pack of vinyl plank flooring | C157: 57 | D157: 132.83 | F157: 7571.31 | G157: 7571.31
F158: 0 | G158: 0
F159: 0 | G159: 0
F160: 0 | G160: 0
F161: 0 | G161: 0
F162: 0 | G162: 0
F163: 0 | G163: 0
F164: 0 | G164: 0
F165: 0 | G165: 0
F166: 0 | G166: 0
F167: 0 | G167: 0
F168: 0 | G168: 0
F169: 0 | G169: 0
A170: TOTAL CONSTRUCTION | E170: =SUM(E155:E169) -> 0 | F170: =SUM(F155:F169) -> 9333.17 | G170: =SUM(G155:G169) -> 9333.17
A171: Narrative (as needed)
A172: The 2000 square foot classroom at the Y City Public Library will provide free learning classes on digital literacy to Veterans. These costs will be 100% programmatic towards Project A. Any EHP-related costs will not be charged to this grant or be a matching contribution.
A175: G. Other
A178: General Description | B178: Quantity | C178: Cost | D178: Matching Contribution | E178: Federal Request | F178: Total Cost | G178: Column1 | H178: Column2 | I178: Column3 | J178: Column4 | K178: Column5 | L178: Column6 | M178: Column7 | N178: Column8 | O178: Column9 | P178: Column10 | Q178: Column11
A179: Project Management Training for Competitive Grant Program Staff | B179: 1 | C179: 7200 | D179: 3500 | E179: =(B179*C179)-D179 -> 3700 | F179: =D179+E179 -> 7200
E180: 0 | F180: 0
E181: 0 | F181: 0
E182: 0 | F182: 0
E183: 0 | F183: 0
E184: 0 | F184: 0
E185: 0 | F185: 0
E186: 0 | F186: 0
E187: 0 | F187: 0
E188: 0 | F188: 0
E189: 0 | F189: 0
E190: 0 | F190: 0
E191: 0 | F191: 0
E192: 0 | F192: 0
E193: 0 | F193: 0
A194: TOTAL OTHER | D194: =SUM(D179:D193) -> 3500 | E194: =SUM(E179:E193) -> 3700 | F194: =SUM(F179:F193) -> 7200
A195: Narrative (as needed)
A196: Annual Project Management Training conducted by XYZ Corporation or the Grant Manager. The training will cover project management areas necessary for the successful implementation and oversight of the Competitive Grant Program. The applicant will provide a $3,500 cash match.
A199: H. Indirect
A202: General Description | B202: Rate Period | C202: Indirect Cost Base ($) | D202: Indirect Cost Rate (%) | E202: Total Indirect Costs ($) | F202: Matching Contribution | G202: Federal Request | H202: Total Cost | I202: Column1 | J202: Column2 | K202: Column3 | L202: Column4 | M202: Column5 | N202: Column6 | O202: Column7 | P202: Column8 | Q202: Column9
A203: The applicant has a Federally-negotiated indirect cost rate agreement with an indirect cost rate of 13%. The indirect cost base is based on labor (salary and fringe benefits). | B203: Period of Performance | C203: 190200 | D203: 0.13 | E203: =C203*D203 -> 24726 | G203: =E203-F203 -> 24726 | H203: =F203+G203 -> 24726
E204: =C204*D204 -> 0 | G204: 0 | H204: 0
E205: 0 | G205: 0 | H205: 0
E206: 0 | G206: 0 | H206: 0
E207: 0 | G207: 0 | H207: 0
E208: 0 | G208: 0 | H208: 0
E209: 0 | G209: 0 | H209: 0
E210: 0 | G210: 0 | H210: 0
E211: 0 | G211: 0 | H211: 0
E212: 0 | G212: 0 | H212: 0
E213: 0 | G213: 0 | H213: 0
E214: 0 | G214: 0 | H214: 0
E215: 0 | G215: 0 | H215: 0
E216: 0 | G216: 0 | H216: 0
E217: 0 | G217: 0 | H217: 0
A218: TOTAL INDIRECT | F218: =SUM(F203:F217) -> 0 | G218: =SUM(G203:G217) -> 24726 | H218: =SUM(H203:H217) -> 24726
A219: Narrative (as needed)
A220: The indirect cost base is the sum of all salaries ($180,000) and fringe benefits ($10,200) charged to the grant during the grant year. The indirect costs are 100% administrative costs and will be subject to the administrative cost cap.

Sheet Year 2
A1: Budget Detail - Year 2
A4: A. Personnel
A6: Position Title | B6: Key Personnel | C6: Relevant Specific Project(s) | D6: Level of Effort | E6: Unit | F6: Unit Cost | G6: Subtotal Salary | H6: Fringe Benefits | I6: Fringe Rate | J6: Matching Contribution | K6: Federal Request | L6: Total | M6: Column2 | N6: Column3 | O6: Column4 | P6: Column5 | Q6: Column6
A7: Grant Manager | B7: Yes | C7: Project A | D7: 1 | E7: Annual | F7: 60000 | G7: 60000 | H7: 10200 | I7: 0.17 | J7: 0 | K7: 70200 | L7: 70200
A8: Legal Staff | B8: No | D8: 400 | E8: Hour | F8: 300 | G8: 120000 | H8: 0 | I8: 0 | J8: 60000 | K8: 60000 | L8: 120000
G9: =D9*F9 -> 0 | H9: =Table16[[#This Row],[Subtotal Salary]]*Table16[[#This Row],[Fringe Rate]] -> 0 | K9: =G9+H9-J9 -> 0 | L9: =J9+K9 -> 0
G10: 0 | H10: =Table16[[#This Row],[Subtotal Salary]]*Table16[[#This Row],[Fringe Rate]] -> 0 | K10: 0 | L10: 0
G11: 0 | H11: =Table16[[#This Row],[Subtotal Salary]]*Table16[[#This Row],[Fringe Rate]] -> 0 | K11: 0 | L11: 0
G12: 0 | H12: =Table16[[#This Row],[Subtotal Salary]]*Table16[[#This Row],[Fringe Rate]] -> 0 | K12: 0 | L12: 0
G13: 0 | H13: =Table16[[#This Row],[Subtotal Salary]]*Table16[[#This Row],[Fringe Rate]] -> 0 | K13: 0 | L13: 0
G14: 0 | H14: =Table16[[#This Row],[Subtotal Salary]]*Table16[[#This Row],[Fringe Rate]] -> 0 | K14: 0 | L14: 0
G15: 0 | H15: =Table16[[#This Row],[Subtotal Salary]]*Table16[[#This Row],[Fringe Rate]] -> 0 | K15: 0 | L15: 0
G16: 0 | H16: =Table16[[#This Row],[Subtotal Salary]]*Table16[[#This Row],[Fringe Rate]] -> 0 | K16: 0 | L16: 0
G17: 0 | H17: =Table16[[#This Row],[Subtotal Salary]]*Table16[[#This Row],[Fringe Rate]] -> 0 | K17: 0 | L17: 0
G18: 0 | H18: =Table16[[#This Row],[Subtotal Salary]]*Table16[[#This Row],[Fringe Rate]] -> 0 | K18: 0 | L18: 0
G19: 0 | H19: =Table16[[#This Row],[Subtotal Salary]]*Table16[[#This Row],[Fringe Rate]] -> 0 | K19: 0 | L19: 0
G20: 0 | H20: =Table16[[#This Row],[Subtotal Salary]]*Table16[[#This Row],[Fringe Rate]] -> 0 | K20: 0 | L20: 0
A21: TOTAL PERSONNEL | G21: =SUM(G7:G20) -> 180000 | H21: =SUM(H7:H20) -> 10200 | J21: =SUM(J7:J20) -> 60000 | K21: =SUM(K7:K20) -> 130200 | L21: =SUM(L7:L20) -> 190200
A22: Narrative (as needed)
A23: The Grant Manager (FTE) will be responsible for completing grant reports; archiving grant-related documents and documentation; preparing for, and supporting, any activities related to grant monitoring, audit or compliance requests; compiling, reconciling, and managing the submission of subgrantee reports and documents. The grant manager will spend 70% of their time ($70,200 x 0.70 = $49,140) on programmatic activities for Project A, 20% of their time ($70,200 x 0.20 = $14,040) on grants administration, and 10% of their time ($70,200 x 0.10 = $7,020) on evaluation. Fringe benefits for this employee include health and dental care, life insurance, long-term disability, retirement, workers compensation, and agency personnel charges. Legal staff (FTE) will be responsible for drafting, execution, and filing fees of legal agreements and Memorandum of Understandings (MOUs) between organizations involved in the grant, including subgrantees. Legal hours also include time to conduct legal reviews for all contracts. Although this employee is FTE, they will only spend 70% of their time on Competitive Grant Program activities. The hourly rate has been prorated to reflect the division of effort ($428.57 * .7 = $300 pro-rated hourly rate). The legal staff will spend 100% of their time on grants administration. The applicant will provide $60,000 as a cash match to cover half of the legal staff's level of effort.
A26: B. Travel
A29: Purpose of Travel/Justification of Need | B29: Type of Travel (Domestic or International) | C29: No. of Days | D29: No. of Travelers | E29: Lodging per Traveler/per night | F29: Flight Cost per Traveler | G29: Vehicle Cost per Traveler | H29: Per Diem per Traveler | I29: Mileage Cost | J29: Miscellaneous | K29: Cost per Trip | L29: Matching Contribution | M29: Federal Request | N29: Total | O29: Used Federal Cost Estimation Tool? | P29: Basis of cost | Q29: Column1
A30: Digital Literacy Training Funds are requested for 2 employees to travel to X city for the Annual Digital Literacy Training series. | B30: Domestic | C30: 5 | D30: 2 | E30: 210 | F30: 120 | G30: 100 | H30: 201 | I30: 146.25 | J30: 60 | K30: 4336.25 | L30: 2850 | M30: 1486.25 | N30: 4336.25 | O30: Yes | P30: Lodging per Traveler/per night was calculated using the average price of X city for the planned kick-off dates. Figures are accurate as of application submission date. Flight per Traveler was calculated using the average price of an economy ticket from Y city to X city for the planned kick-off dates. Figures are accurate as of application submission date. Vehicle per Traveler was calculated using the average price of a basic car rental in X city. The total includes the flat price of the vehicle itself ($90) and insurance ($10): $90 + $10 = $100 Total Cost for Vehicle per Traveler). Per Diem per Traveler was calculated using the current GSA rates (https://www.gsa.gov/travel/plan-book/per-diem-rates). The listed $201 accounts for the cost of one traveler for one day. The total amount of costs allocated towards Per Diems can be reached by multiplying the Per Diem rate ($201) by the number of travelers (2) and the number of days (5): 201*2*5 = $2,010 Total for Per Diem. Mileage was calculated using the accompanying per mile cost for a basic car rental in Y city ($0.585 per mile) and multiplying it by the expected number of miles for the entire trip (250 miles): $0.59 * 250 = $146.25 Mileage cost for the trip. Miscellaneous costs account for potential variable costs such as parking, internet access, etc. with rates researched online for X city.
A31: Subgrantee Monitoring Funds are requested for 1 employee to travel to Z city to monitor subgrantee activities. | B31: Domestic | C31: 2 | D31: 1 | E31: 150 | F31: 0 | G31: 100 | H31: 79 | I31: 120 | J31: 30 | K31: 795 | L31: 397.5 | M31: 397.5 | N31: 795 | O31: Yes | P31: Lodging per Traveler/per night was calculated using the average price of Z city for the estimated monitoring dates. Figures are accurate as of application submission date. Flights will not be required. Vehicle per Traveler was calculated using the average price of a basic car rental in Z city. The total includes the flat price of the vehicle itself ($90) and insurance ($10): $90 + $10 = $100 Total Cost for Vehicle per Traveler). Per Diem per Traveler was calculated using the current GSA rates (https://www.gsa.gov/travel/plan-book/per-diem-rates). The listed $79 accounts for the cost of one traveler for one day. The total amount of costs allocated towards Per Diems can be reached by multiplying the Per Diem rate ($79) by the number of travelers (1) and the number of days (2): 79*1*2 = $158 Total for Per Diem. Mileage was calculated using the accompanying per mile cost for a basic car rental in Z city ($0.40 per mile) and multiplying it by the expected number of miles for the entire trip (300 miles): $0.40*300 = $120 Mileage cost for the trip. Miscellaneous costs account for potential variable costs such as parking, internet access, etc. with rates researched online for Z city.
K32: =(((C32-1)*E32)*D32)+(D32*F32)+(D32*G32)+(D32*H32*C32)+I32+J32 -> 0 | M32: =K32-L32 -> 0 | N32: =L32+M32 -> 0
K33: 0 | M33: 0 | N33: 0
K34: 0 | M34: 0 | N34: 0
K35: 0 | M35: 0 | N35: 0
K36: 0 | M36: 0 | N36: 0
K37: 0 | M37: 0 | N37: 0
K38: 0 | M38: 0 | N38: 0
K39: 0 | M39: 0 | N39: 0
K40: 0 | M40: 0 | N40: 0
K41: 0 | M41: 0 | N41: 0
K42: 0 | M42: 0 | N42: 0
K43: 0 | M43: 0 | N43: 0
K44: 0 | M44: 0 | N44: 0
A45: TOTAL TRAVEL | L45: =SUM(L30:L44) -> 3247.5 | M45: =SUM(M30:M44) -> 1883.75 | N45: =SUM(N30:N44) -> 5131.25
A46: Narrative (as needed)
A47: Digital Literacy Training costs will be 100% for programmatic purposes in support of Project A (no costs towards administration or evaluation). The applicant will provide match at the value of per diem ($201*2*5 = $2010) plus lodging ($210*4 = $840) (total match provided will be $2,850). The Subgrantee Monitoring trip will be entirely for administrative purposes. The applicant will provide a 50% cash match for the trip ($795*0.5 = $397.5).
A50: C. Equipment
A53: Equipment Item | B53: Qty | C53: Unit Cost | D53: Matching Contribution | E53: Federal Request | F53: Total Cost | G53: Basis of Cost | H53: Column1 | I53: Column2 | J53: Column3 | K53: Column4 | L53: Column5 | M53: Column6 | N53: Column7 | O53: Column8 | P53: Column9 | Q53: Column10
E54: =(B54*C54)-D54 -> 0 | F54: =D54+E54 -> 0
E55: 0 | F55: 0
E56: 0 | F56: 0
E57: 0 | F57: 0
E58: 0 | F58: 0
E59: 0 | F59: 0
E60: 0 | F60: 0
E61: 0 | F61: 0
E62: 0 | F62: 0
E63: 0 | F63: 0
E64: 0 | F64: 0
E65: 0 | F65: 0
E66: 0 | F66: 0
E67: 0 | F67: 0
E68: 0 | F68: 0
A69: TOTAL EQUIPMENT | D69: =SUM(D54:D68) -> 0 | E69: =SUM(E54:E68) -> 0 | F69: =SUM(F54:F68) -> 0
A70: Narrative (as needed)
A74: D. Supplies
A77: General Category of Supplies | B77: Qty | C77: Unit Cost | D77: Matching Contribution | E77: Federal Request | F77: Total Cost | G77: Basis of Cost | H77: Column1 | I77: Column2 | J77: Column3 | K77: Column4 | L77: Column5 | M77: Column6 | N77: Column7 | O77: Column8 | P77: Column9 | Q77: Column10
A78: Office Supply Set | B78: 10 | C78: 29.99 | D78: 0 | E78: 299.9 | F78: 299.9 | G78: Online listing at [list URL here]
E79: =(B79*C79)-D79 -> 0 | F79: =D79+E79 -> 0
E80: 0 | F80: 0
E81: 0 | F81: 0
E82: 0 | F82: 0
E83: 0 | F83: 0
E84: 0 | F84: 0
E85: 0 | F85: 0
E86: 0 | F86: 0
E87: 0 | F87: 0
E88: 0 | F88: 0
E89: 0 | F89: 0
E90: 0 | F90: 0
E91: 0 | F91: 0
A92: TOTAL SUPPLIES | D92: =SUM(D78:D91) -> 0 | E92: =SUM(E78:E91) -> 299.9 | F92: =SUM(F78:F91) -> 299.9
A93: Narrative (as needed)
A94: Office supplies will be used by office staff to carry out project objectives. 100% of the supplies will go towards administrative costs.
A97: E. Contractual-Subawards
A99: CONTRACTORS
A100: Contractor Name / Organization | B100: Project Description | C100: Basis of cost | D100: Value ($) | E100: Federal Request | F100: Total Cost | G100: Column11 | H100: Column1 | I100: Column2 | J100: Column3 | K100: Column4 | L100: Column5 | M100: Column6 | N100: Column7 | O100: Column8 | P100: Column9 | Q100: Column10
A101: Y City General Contractor | B101: Y City General Contractor is a general contractor who will assist with building 1500 sq foot public access computing center additions across libraries in the county, as part of Project A. | C101: Market research on general contractor quotes | D101: 750000 | E101: 750000 | F101: 750000 | P101: Column10
A102: Digital Literacy Advisors, LLC | B102: Digital Literacy Advisors, LLC will provide consultants to assist with digital literacy strategy development in support of Project C. | C102: Market research on consultant quotes | D102: 400000 | E102: 400000 | F102: 400000 | P102: Column11
E103: =F103 -> 0 | F103: =D103 -> 0
E104: 0 | F104: 0
E105: 0 | F105: 0
E106: 0 | F106: 0
E107: 0 | F107: 0
E108: 0 | F108: 0
E109: 0 | F109: 0
E110: 0 | F110: 0
E111: 0 | F111: 0
E112: 0 | F112: 0
E113: 0 | F113: 0
E114: 0 | F114: 0
E115: 0 | F115: 0
E116: 0 | F116: 0
E117: 0 | F117: 0
E118: 0 | F118: 0
E119: 0 | F119: 0
E120: 0 | F120: 0
E121: 0 | F121: 0
A122: SUBTOTAL CONTRACTORS | E122: =SUM(E101:E121) -> 1150000 | F122: =SUM(F101:F121) -> 1150000
A124: SUBRECIPIENTS
A125: Subrecipient Name / Organization | B125: Project Description | C125: Value of Subaward ($) | D125: Basis of Cost | E125: Matching Contribution | F125: Type (Cash, In-Kind, or N/A) | G125: Source | H125: Federal Request | I125: Total Cost | J125: Column8 | K125: Column1 | L125: Column2 | M125: Column3 | N125: Column4 | O125: Column5 | P125: Column6 | Q125: Column7
A126: X City Public Library | B126: This subrecipient will be responsible for administering the entirety of Project B. | C126: 700000 | D126: Estimated cost of Project B | E126: 150000 | F126: In-Kind | G126: Subrecipient | H126: 700000 | I126: 850000
A127: State University | B127: This subrecipient will be responsible for implementing the entirety of Project C. | C127: 750000 | D127: Estimated cost of Project C | E127: 100000 | F127: Cash | G127: Subrecipient | H127: 750000 | I127: 850000
H128: =C128 -> 0 | I128: =(E128+H128) -> 0
H129: 0 | I129: 0
H130: 0 | I130: 0
H131: 0 | I131: 0
H132: 0 | I132: 0
H133: 0 | I133: 0
H134: 0 | I134: 0
H135: 0 | I135: 0
H136: 0 | I136: 0
H137: 0 | I137: 0
H138: 0 | I138: 0
H139: 0 | I139: 0
H140: 0 | I140: 0
A141: SUBTOTAL SUBRECIPIENTS | E141: =SUM(Table716[Matching Contribution]) -> 250000 | H141: =SUM(H126:H140) -> 1450000 | I141: =SUM(I126:I140) -> 1700000
A143: TOTAL CONTRACTUAL-SUBAWARDS | E143: =E141 -> 250000 | H143: =E122+H141 -> 2600000 | I143: =F122+I141 -> 2850000
A146: Narrative (as needed)
A147: X City Public Library will provide in-kind contributions in terms of facilities valued at $150,000.
A150: F. Construction
A153: Purpose | B153: General Description | C153: # of Items | D153: Cost | E153: Matching Contribution | F153: Federal Request | G153: Total Cost | H153: Column1 | I153: Column2 | J153: Column3 | K153: Column4 | L153: Column5 | M153: Column6 | N153: Column7 | O153: Column8 | P153: Column9 | Q153: Column10
F154: =(C154*D154)-E154 -> 0 | G154: =E154+F154 -> 0
F155: 0 | G155: 0
F156: 0 | G156: 0
F157: 0 | G157: 0
F158: 0 | G158: 0
F159: 0 | G159: 0
F160: 0 | G160: 0
F161: 0 | G161: 0
F162: 0 | G162: 0
F163: 0 | G163: 0
F164: 0 | G164: 0
F165: 0 | G165: 0
F166: 0 | G166: 0
F167: 0 | G167: 0
F168: 0 | G168: 0
A169: TOTAL CONSTRUCTION | E169: =SUM(E154:E168) -> 0 | F169: =SUM(F154:F168) -> 0 | G169: =SUM(G154:G168) -> 0
A170: Narrative (as needed)
A174: G. Other
A177: General Description | B177: Quantity | C177: Cost | D177: Matching Contribution | E177: Federal Request | F177: Total Cost | G177: Column1 | H177: Column2 | I177: Column3 | J177: Column4 | K177: Column5 | L177: Column6 | M177: Column7 | N177: Column8 | O177: Column9 | P177: Column10 | Q177: Column11
A178: Project Management Training for Competitive Grant Program Staff | B178: 1 | C178: 7200 | D178: 3500 | E178: =(B178*C178)-D178 -> 3700 | F178: =D178+E178 -> 7200
E179: 0 | F179: 0
E180: 0 | F180: 0
E181: 0 | F181: 0
E182: 0 | F182: 0
E183: 0 | F183: 0
E184: 0 | F184: 0
E185: 0 | F185: 0
E186: 0 | F186: 0
E187: 0 | F187: 0
E188: 0 | F188: 0
E189: 0 | F189: 0
E190: 0 | F190: 0
E191: 0 | F191: 0
E192: 0 | F192: 0
A193: TOTAL OTHER | D193: =SUM(D178:D192) -> 3500 | E193: =SUM(E178:E192) -> 3700 | F193: =SUM(F178:F192) -> 7200
A194: Narrative (as needed)
A195: Annual Project Management Training conducted by XYZ Corporation or the Grant Manager. The training will cover project management areas necessary for the successful implementation and oversight of the Competitive Grant Program. The applicant will provide a $3,500 cash match.
A198: H. Indirect
A201: General Description | B201: Rate Period | C201: Indirect Cost Base ($) | D201: Indirect Cost Rate (%) | E201: Total Indirect Costs ($) | F201: Matching Contribution | G201: Federal Request | H201: Total Cost | I201: Column1 | J201: Column2 | K201: Column3 | L201: Column4 | M201: Column5 | N201: Column6 | O201: Column7 | P201: Column8 | Q201: Column9
A202: The applicant has a Federally-negotiated indirect cost rate agreement with an indirect cost rate of 13%. The indirect cost base is based on labor (salary and fringe benefits). | B202: Period of Performance | C202: 190200 | D202: 0.13 | E202: =C202*D202 -> 24726 | G202: =E202-F202 -> 24726 | H202: =F202+G202 -> 24726
E203: =C203*D203 -> 0 | G203: 0 | H203: 0
E204: 0 | G204: 0 | H204: 0
E205: 0 | G205: 0 | H205: 0
E206: 0 | G206: 0 | H206: 0
E207: 0 | G207: 0 | H207: 0
E208: 0 | G208: 0 | H208: 0
E209: 0 | G209: 0 | H209: 0
E210: 0 | G210: 0 | H210: 0
E211: 0 | G211: 0 | H211: 0
E212: 0 | G212: 0 | H212: 0
E213: 0 | G213: 0 | H213: 0
E214: 0 | G214: 0 | H214: 0
E215: 0 | G215: 0 | H215: 0
E216: 0 | G216: 0 | H216: 0
A217: TOTAL INDIRECT | F217: =SUM(F202:F216) -> 0 | G217: =SUM(G202:G216) -> 24726 | H217: =SUM(H202:H216) -> 24726
A218: Narrative (as needed)
A219: The indirect cost base is the sum of all salaries ($180,000) and fringe benefits ($10,200) charged to the grant during the grant year. The indirect costs are 100% administrative costs and will be subject to the administrative cost cap.

Sheet Year 3
A1: Budget Detail - Year 3
A4: A. Personnel
A6: Position Title | B6: Key Personnel | C6: Relevant Specific Project(s) | D6: Level of Effort | E6: Unit | F6: Unit Cost | G6: Subtotal Salary | H6: Fringe Benefits | I6: Fringe Rate | J6: Matching Contribution | K6: Federal Request | L6: Total | M6: Column2 | N6: Column3 | O6: Column4 | P6: Column5 | Q6: Column6
A7: Grant Manager | B7: Yes | C7: Project A | D7: 1 | E7: Annual | F7: 60000 | G7: 60000 | H7: 10200 | I7: 0.17 | J7: 0 | K7: 70200 | L7: 70200
A8: Legal Staff | B8: No | D8: 400 | E8: Hour | F8: 300 | G8: 120000 | H8: 0 | I8: 0 | J8: 60000 | K8: 60000 | L8: 120000
G9: =D9*F9 -> 0 | H9: =Table1620[[#This Row],[Subtotal Salary]]*Table1620[[#This Row],[Fringe Rate]] -> 0 | K9: =G9+H9-J9 -> 0 | L9: =J9+K9 -> 0
G10: 0 | H10: =Table1620[[#This Row],[Subtotal Salary]]*Table1620[[#This Row],[Fringe Rate]] -> 0 | K10: 0 | L10: 0
G11: 0 | H11: =Table1620[[#This Row],[Subtotal Salary]]*Table1620[[#This Row],[Fringe Rate]] -> 0 | K11: 0 | L11: 0
G12: 0 | H12: =Table1620[[#This Row],[Subtotal Salary]]*Table1620[[#This Row],[Fringe Rate]] -> 0 | K12: 0 | L12: 0
G13: 0 | H13: =Table1620[[#This Row],[Subtotal Salary]]*Table1620[[#This Row],[Fringe Rate]] -> 0 | K13: 0 | L13: 0
G14: 0 | H14: =Table1620[[#This Row],[Subtotal Salary]]*Table1620[[#This Row],[Fringe Rate]] -> 0 | K14: 0 | L14: 0
G15: 0 | H15: =Table1620[[#This Row],[Subtotal Salary]]*Table1620[[#This Row],[Fringe Rate]] -> 0 | K15: 0 | L15: 0
G16: 0 | H16: =Table1620[[#This Row],[Subtotal Salary]]*Table1620[[#This Row],[Fringe Rate]] -> 0 | K16: 0 | L16: 0
G17: 0 | H17: =Table1620[[#This Row],[Subtotal Salary]]*Table1620[[#This Row],[Fringe Rate]] -> 0 | K17: 0 | L17: 0
G18: 0 | H18: =Table1620[[#This Row],[Subtotal Salary]]*Table1620[[#This Row],[Fringe Rate]] -> 0 | K18: 0 | L18: 0
G19: 0 | H19: =Table1620[[#This Row],[Subtotal Salary]]*Table1620[[#This Row],[Fringe Rate]] -> 0 | K19: 0 | L19: 0
G20: 0 | H20: =Table1620[[#This Row],[Subtotal Salary]]*Table1620[[#This Row],[Fringe Rate]] -> 0 | K20: 0 | L20: 0
G21: =D21*F21 -> 0 | H21: =Table1620[[#This Row],[Subtotal Salary]]*Table1620[[#This Row],[Fringe Rate]] -> 0 | K21: 0 | L21: 0
G22: =D22*F22 -> 0 | H22: =Table1620[[#This Row],[Subtotal Salary]]*Table1620[[#This Row],[Fringe Rate]] -> 0 | K22: =G22+H22-J22 -> 0 | L22: 0
A23: TOTAL PERSONNEL | G23: =SUM(G7:G22) -> 180000 | H23: =SUM(H7:H22) -> 10200 | J23: =SUM(J7:J22) -> 60000 | K23: =SUM(K7:K22) -> 130200 | L23: =SUM(L7:L22) -> 190200
A24: Narrative (as needed)
A25: The Grant Manager (FTE) will be responsible for completing grant reports; archiving grant-related documents and documentation; preparing for, and supporting, any activities related to grant monitoring, audit or compliance requests; compiling, reconciling, and managing the submission of subgrantee reports and documents. The grant manager will spend 70% of their time ($70,200 x 0.70 = $49,140) on programmatic activities for Project A, 20% of their time ($70,200 x 0.20 = $14,040) on grants administration, and 10% of their time ($70,200 x 0.10 = $7,020) on evaluation. Fringe benefits for this employee include health and dental care, life insurance, long-term disability, retirement, workers compensation, and agency personnel charges. Legal staff (FTE) will be responsible for drafting, execution, and filing fees of legal agreements and Memorandum of Understandings (MOUs) between organizations involved in the grant, including subgrantees. Legal hours also include time to conduct legal reviews for all contracts. Although this employee is FTE, they will only spend 70% of their time on Competitive Grant Program activities. The hourly rate has been prorated to reflect the division of effort ($428.57 * .7 = $300 pro-rated hourly rate). The legal staff will spend 100% of their time on grants administration. The applicant will provide $60,000 as a cash match to cover half of the legal staff's level of effort.
A28: B. Travel
A31: Purpose of Travel/Justification of Need | B31: Type of Travel (Domestic or International) | C31: No. of Days | D31: No. of Travelers | E31: Lodging per Traveler/per night | F31: Flight Cost per Traveler | G31: Vehicle Cost per Traveler | H31: Per Diem per Traveler | I31: Mileage Cost | J31: Miscellaneous | K31: Cost per Trip | L31: Matching Contribution | M31: Federal Request | N31: Total | O31: Used Federal Cost Estimation Tool? | P31: Basis of cost | Q31: Column1
A32: Digital Literacy Training Funds are requested for 2 employees to travel to X city for the Annual Digital Literacy Training series. | B32: Domestic | C32: 5 | D32: 2 | E32: 210 | F32: 120 | G32: 100 | H32: 201 | I32: 146.25 | J32: 60 | K32: 4336.25 | L32: 2850 | M32: 1486.25 | N32: 4336.25 | O32: Yes | P32: Lodging per Traveler/per night was calculated using the average price of X city for the planned kick-off dates. Figures are accurate as of application submission date. Flight per Traveler was calculated using the average price of an economy ticket from Y city to X city for the planned kick-off dates. Figures are accurate as of application submission date. Vehicle per Traveler was calculated using the average price of a basic car rental in X city. The total includes the flat price of the vehicle itself ($90) and insurance ($10): $90 + $10 = $100 Total Cost for Vehicle per Traveler). Per Diem per Traveler was calculated using the current GSA rates (https://www.gsa.gov/travel/plan-book/per-diem-rates). The listed $201 accounts for the cost of one traveler for one day. Mileage was calculated using the accompanying per mile cost for a basic car rental in Y city ($0.585 per mile) and multiplying it by the expected number of miles for the entire trip (250 miles): $0.59 * 250 = $146.25 Mileage cost for the trip. Miscellaneous costs account for potential variable costs such as parking, internet access, etc. with rates researched online for X city.
A33: Subgrantee Monitoring Funds are requested for 1 employee to travel to Z city to monitor subgrantee activities. | B33: Domestic | C33: 2 | D33: 1 | E33: 150 | F33: 0 | G33: 100 | H33: 79 | I33: 120 | J33: 30 | K33: 795 | L33: 397.5 | M33: 397.5 | N33: 795 | O33: Yes | P33: Lodging per Traveler/per night was calculated using the average price of Z city for the estimated monitoring dates. Figures are accurate as of application submission date. Flights will not be required. Vehicle per Traveler was calculated using the average price of a basic car rental in Z city. The total includes the flat price of the vehicle itself ($90) and insurance ($10): $90 + $10 = $100 Total Cost for Vehicle per Traveler). Per Diem per Traveler was calculated using the current GSA rates (https://www.gsa.gov/travel/plan-book/per-diem-rates). The listed $79 accounts for the cost of one traveler for one day. Mileage was calculated using the accompanying per mile cost for a basic car rental in Z city ($0.40 per mile) and multiplying it by the expected number of miles for the entire trip (300 miles): $0.40*300 = $120 Mileage cost for the trip. Miscellaneous costs account for potential variable costs such as parking, internet access, etc. with rates researched online for Z city.
K34: =(((C34-1)*E34)*D34)+(D34*F34)+(D34*G34)+(D34*H34*C34)+I34+J34 -> 0 | M34: =K34-L34 -> 0 | N34: =L34+M34 -> 0
K35: 0 | M35: 0 | N35: 0
K36: 0 | M36: 0 | N36: 0
K37: 0 | M37: 0 | N37: 0
K38: 0 | M38: 0 | N38: 0
K39: 0 | M39: 0 | N39: 0
K40: 0 | M40: 0 | N40: 0
K41: 0 | M41: 0 | N41: 0
K42: 0 | M42: 0 | N42: 0
K43: 0 | M43: 0 | N43: 0
K44: 0 | M44: 0 | N44: 0
K45: 0 | M45: 0 | N45: 0
K46: 0 | M46: 0 | N46: 0
A47: TOTAL TRAVEL | L47: =SUM(L32:L46) -> 3247.5 | M47: =SUM(M32:M46) -> 1883.75 | N47: =SUM(N32:N46) -> 5131.25
A48: Narrative (as needed)
A49: Digital Literacy Training costs will be 100% for programmatic purposes in support of Project A (no costs towards administration or evaluation). The applicant will provide match at the value of per diem ($201*2*5 = $2010) plus lodging ($210*4 = $840) (total match provided will be $2,850). The Subgrantee Monitoring trip will be entirely for administrative purposes. The applicant will provide a 50% cash match for the trip ($795*0.5 = $397.5).
A52: C. Equipment
A55: Equipment Item | B55: Qty | C55: Unit Cost | D55: Matching Contribution | E55: Federal Request | F55: Total Cost | G55: Basis of Cost | H55: Column1 | I55: Column2 | J55: Column3 | K55: Column4 | L55: Column5 | M55: Column6 | N55: Column7 | O55: Column8 | P55: Column9 | Q55: Column10
E56: =(B56*C56)-D56 -> 0 | F56: =D56+E56 -> 0
E57: 0 | F57: 0
E58: 0 | F58: 0
E59: 0 | F59: 0
E60: 0 | F60: 0
E61: 0 | F61: 0
E62: 0 | F62: 0
E63: 0 | F63: 0
E64: 0 | F64: 0
E65: 0 | F65: 0
E66: 0 | F66: 0
E67: 0 | F67: 0
E68: 0 | F68: 0
E69: 0 | F69: 0
E70: 0 | F70: 0
A71: TOTAL EQUIPMENT | D71: =SUM(D56:D70) -> 0 | E71: =SUM(E56:E70) -> 0 | F71: =SUM(F56:F70) -> 0
A72: Narrative (as needed)
A76: D. Supplies
C77: Computation
A79: General Category of Supplies | B79: Qty | C79: Unit Cost | D79: Matching Contribution | E79: Federal Request | F79: Total Cost | G79: Basis of Cost | H79: Column1 | I79: Column2 | J79: Column3 | K79: Column4 | L79: Column5 | M79: Column6 | N79: Column7 | O79: Column8 | P79: Column9 | Q79: Column10
A80: Office Supply Set | B80: 10 | C80: 29.99 | D80: 0 | E80: 299.9 | F80: 299.9 | G80: Online listing at [list URL here]
E81: =(B81*C81)-D81 -> 0 | F81: =D81+E81 -> 0
E82: 0 | F82: 0
E83: 0 | F83: 0
E84: 0 | F84: 0
E85: 0 | F85: 0
E86: 0 | F86: 0
E87: 0 | F87: 0
E88: 0 | F88: 0
E89: 0 | F89: 0
E90: 0 | F90: 0
E91: 0 | F91: 0
E92: 0 | F92: 0
E93: 0 | F93: 0
A94: TOTAL SUPPLIES | D94: =SUM(D80:D93) -> 0 | E94: =SUM(E80:E93) -> 299.9 | F94: =SUM(F80:F93) -> 299.9
A95: Narrative (as needed)
A96: Office supplies will be used by office staff to carry out project objectives. 100% of the supplies will go towards administrative costs.
A99: E. Contractual-Subawards
A101: CONTRACTORS
A102: Contractor Name / Organization | B102: Project Description | C102: Basis of cost | D102: Value ($) | E102: Federal Request | F102: Total Cost | G102: Column11 | H102: Column1 | I102: Column2 | J102: Column3 | K102: Column4 | L102: Column5 | M102: Column6 | N102: Column7 | O102: Column8 | P102: Column9 | Q102: Column10
A103: Y City General Contractor | B103: Y City General Contractor is a general contractor who will assist with building 1500 sq foot public access computing center additions across libraries in the county, as part of Project A. | C103: Market research on general contractor quotes | D103: 250000 | E103: 250000 | F103: 250000 | P103: Column10
A104: Digital Literacy Advisors, LLC | B104: Digital Literacy Advisors, LLC will provide consultants to assist with digital literacy strategy development in support of Project C. | C104: Market research on consultant quotes | D104: 400000 | E104: 400000 | F104: 400000 | P104: Column11
E105: =F105 -> 0 | F105: =D105 -> 0 | O105: Column8 | P105: Column9 | Q105: Column10
E106: 0 | F106: 0 | O106: Column8 | P106: Column9 | Q106: Column10
E107: 0 | F107: 0 | O107: Column8 | P107: Column9 | Q107: Column10
E108: 0 | F108: 0 | O108: Column8 | P108: Column9 | Q108: Column10
E109: 0 | F109: 0 | O109: Column8 | P109: Column9 | Q109: Column10
E110: 0 | F110: 0 | O110: Column8 | P110: Column9 | Q110: Column10
E111: 0 | F111: 0 | O111: Column8 | P111: Column9 | Q111: Column10
E112: 0 | F112: 0 | O112: Column8 | P112: Column9 | Q112: Column10
E113: 0 | F113: 0 | O113: Column8 | P113: Column9 | Q113: Column10
E114: 0 | F114: 0 | O114: Column8 | P114: Column9 | Q114: Column10
E115: 0 | F115: 0 | O115: Column8 | P115: Column9 | Q115: Column10
E116: 0 | F116: 0 | O116: Column8 | P116: Column9 | Q116: Column10
E117: 0 | F117: 0 | O117: Column8 | P117: Column9 | Q117: Column10
E118: 0 | F118: 0
E119: 0 | F119: 0
A120: SUBTOTAL CONTRACTORS | E120: =SUM(E103:E119) -> 650000 | F120: =SUM(F103:F119) -> 650000
A122: SUBRECIPIENTS
A123: Subrecipient Name / Organization | B123: Project Description | C123: Value of Subaward ($) | D123: Basis of Cost | E123: Matching Contribution | F123: Type (Cash, In-Kind, or N/A) | G123: Source | H123: Federal Request | I123: Total Cost | J123: Column8 | K123: Column1 | L123: Column2 | M123: Column3 | N123: Column4 | O123: Column5 | P123: Column6 | Q123: Column7
A124: X City Public Library | B124: This subrecipient will be responsible for administering the entirety of Project B. | C124: 400000 | D124: Estimated cost of Project B | E124: 150000 | F124: In-Kind | G124: Subrecipient | H124: 400000 | I124: 550000
A125: State University | B125: This subrecipient will be responsible for implementing the entirety of Project C. | C125: 750000 | D125: Estimated cost of Project C | E125: 100000 | F125: Cash | G125: Subrecipient | H125: 750000 | I125: 850000
H126: =C126 -> 0 | I126: =(E126+H126) -> 0
H127: 0 | I127: 0
H128: 0 | I128: 0
H129: 0 | I129: 0
H130: 0 | I130: 0
H131: 0 | I131: 0
H132: 0 | I132: 0
H133: 0 | I133: 0
H134: 0 | I134: 0
H135: 0 | I135: 0
H136: 0 | I136: 0
H137: 0 | I137: 0
H138: 0 | I138: 0
A139: SUBTOTAL SUBRECIPIENTS | E139: =SUM(Table71625[Matching Contribution]) -> 250000 | H139: =SUM(H124:H138) -> 1150000 | I139: =SUM(I124:I138) -> 1400000
A141: TOTAL CONTRACTUAL-SUBAWARDS | E141: =E139 -> 250000 | H141: =E120+H139 -> 1800000 | I141: =F120+I139 -> 2050000
A142: Narrative (as needed)
A143: X City Public Library will provide in-kind contributions in terms of facilities valued at $150,000.
A146: F. Construction
A149: Purpose | B149: General Description | C149: # of Items | D149: Cost | E149: Matching Contribution | F149: Federal Request | G149: Total Cost | H149: Column1 | I149: Column2 | J149: Column3 | K149: Column4 | L149: Column5 | M149: Column6 | N149: Column7 | O149: Column8 | P149: Column9 | Q149: Column10
F150: =(C150*D150)-E150 -> 0 | G150: =E150+F150 -> 0
F151: 0 | G151: 0
F152: 0 | G152: 0
F153: 0 | G153: 0
F154: 0 | G154: 0
F155: 0 | G155: 0
F156: 0 | G156: 0
F157: 0 | G157: 0
F158: 0 | G158: 0
F159: 0 | G159: 0
F160: 0 | G160: 0
F161: 0 | G161: 0
F162: 0 | G162: 0
F163: 0 | G163: 0
F164: 0 | G164: 0
A165: TOTAL CONSTRUCTION | E165: =SUM(E150:E164) -> 0 | F165: =SUM(F150:F164) -> 0 | G165: =SUM(G150:G164) -> 0
A166: Narrative (as needed)
A170: G. Other
A173: General Description | B173: Quantity | C173: Cost | D173: Matching Contribution | E173: Federal Request | F173: Total Cost | G173: Column1 | H173: Column2 | I173: Column3 | J173: Column4 | K173: Column5 | L173: Column6 | M173: Column7 | N173: Column8 | O173: Column9 | P173: Column10 | Q173: Column11
A174: Project Management Training for Competitive Grant Program Staff | B174: 1 | C174: 7200 | D174: 3500 | E174: =(B174*C174)-D174 -> 3700 | F174: =D174+E174 -> 7200
E175: 0 | F175: 0
E176: 0 | F176: 0
E177: 0 | F177: 0
E178: 0 | F178: 0
E179: 0 | F179: 0
E180: 0 | F180: 0
E181: 0 | F181: 0
E182: 0 | F182: 0
E183: 0 | F183: 0
E184: 0 | F184: 0
E185: 0 | F185: 0
E186: 0 | F186: 0
E187: 0 | F187: 0
E188: 0 | F188: 0
A189: TOTAL OTHER | D189: =SUM(D174:D188) -> 3500 | E189: =SUM(E174:E188) -> 3700 | F189: =SUM(F174:F188) -> 7200
A190: Narrative (as needed)
A191: Annual Project Management Training conducted by XYZ Corporation or the Grant Manager. The training will cover project management areas necessary for the successful implementation and oversight of the Competitive Grant Program. The applicant will provide a $3,500 cash match.
A194: H. Indirect
A197: General Description | B197: Rate Period | C197: Indirect Cost Base ($) | D197: Indirect Cost Rate (%) | E197: Total Indirect Costs ($) | F197: Matching Contribution | G197: Federal Request | H197: Total Cost | I197: Column1 | J197: Column2 | K197: Column3 | L197: Column4 | M197: Column5 | N197: Column6 | O197: Column7 | P197: Column8 | Q197: Column9
A198: The applicant has a Federally-negotiated indirect cost rate agreement with an indirect cost rate of 13%. The indirect cost base is based on labor (salary and fringe benefits). | B198: Period of Performance | C198: 190200 | D198: 0.13 | E198: =C198*D198 -> 24726 | G198: =E198-F198 -> 24726 | H198: =F198+G198 -> 24726
E199: =C199*D199 -> 0 | G199: 0 | H199: 0
E200: 0 | G200: 0 | H200: 0
E201: 0 | G201: 0 | H201: 0
E202: 0 | G202: 0 | H202: 0
E203: 0 | G203: 0 | H203: 0
E204: 0 | G204: 0 | H204: 0
E205: 0 | G205: 0 | H205: 0
E206: 0 | G206: 0 | H206: 0
E207: 0 | G207: 0 | H207: 0
E208: 0 | G208: 0 | H208: 0
E209: 0 | G209: 0 | H209: 0
E210: 0 | G210: 0 | H210: 0
E211: 0 | G211: 0 | H211: 0
E212: 0 | G212: 0 | H212: 0
A213: TOTAL INDIRECT | F213: =SUM(F198:F212) -> 0 | G213: =SUM(G198:G212) -> 24726 | H213: =SUM(H198:H212) -> 24726
A214: Narrative (as needed)
A215: The indirect cost base is the sum of all salaries ($180,000) and fringe benefits ($10,200) charged to the grant during the grant year. The indirect costs are 100% administrative costs and will be subject to the administrative cost cap.

Sheet Year 4
A1: Budget Detail - Year 4
A4: A. Personnel
A6: Position Title | B6: Key Personnel | C6: Relevant Specific Project(s) | D6: Level of Effort | E6: Unit | F6: Unit Cost | G6: Subtotal Salary | H6: Fringe Benefits | I6: Fringe Rate | J6: Matching Contribution | K6: Federal Request | L6: Total | M6: Column2 | N6: Column3 | O6: Column4 | P6: Column5 | Q6: Column6
A7: Grant Manager | B7: Yes | C7: Project A | D7: 1 | E7: Annual | F7: 60000 | G7: 60000 | H7: 10200 | I7: 0.17 | J7: 0 | K7: 70200 | L7: 70200
A8: Legal Staff | B8: No | D8: 400 | E8: Hour | F8: 300 | G8: 120000 | H8: 0 | I8: 0 | J8: 60000 | K8: 60000 | L8: 120000
G9: =D9*F9 -> 0 | H9: =Table129[[#This Row],[Subtotal Salary]]*Table129[[#This Row],[Fringe Rate]] -> 0 | K9: =G9+H9-J9 -> 0 | L9: =J9+K9 -> 0
G10: 0 | H10: =Table129[[#This Row],[Subtotal Salary]]*Table129[[#This Row],[Fringe Rate]] -> 0 | K10: 0 | L10: 0
G11: 0 | H11: =Table129[[#This Row],[Subtotal Salary]]*Table129[[#This Row],[Fringe Rate]] -> 0 | K11: 0 | L11: 0
G12: 0 | H12: =Table129[[#This Row],[Subtotal Salary]]*Table129[[#This Row],[Fringe Rate]] -> 0 | K12: 0 | L12: 0
G13: 0 | H13: =Table129[[#This Row],[Subtotal Salary]]*Table129[[#This Row],[Fringe Rate]] -> 0 | K13: 0 | L13: 0
G14: 0 | H14: =Table129[[#This Row],[Subtotal Salary]]*Table129[[#This Row],[Fringe Rate]] -> 0 | K14: 0 | L14: 0
G15: 0 | H15: =Table129[[#This Row],[Subtotal Salary]]*Table129[[#This Row],[Fringe Rate]] -> 0 | K15: 0 | L15: 0
G16: =D16*F16 -> 0 | H16: =Table129[[#This Row],[Subtotal Salary]]*Table129[[#This Row],[Fringe Rate]] -> 0 | K16: 0 | L16: 0
A17: TOTAL PERSONNEL | G17: =SUM(G7:G16) -> 180000 | H17: =SUM(H7:H16) -> 10200 | J17: =SUM(J7:J16) -> 60000 | K17: =SUM(K7:K16) -> 130200 | L17: =SUM(L7:L16) -> 190200
A18: Narrative (as needed)
A19: The Grant Manager (FTE) will be responsible for completing grant reports; archiving grant-related documents and documentation; preparing for, and supporting, any activities related to grant monitoring, audit or compliance requests; compiling, reconciling, and managing the submission of subgrantee reports and documents. The grant manager will spend 70% of their time ($70,200 x 0.70 = $49,140) on programmatic activities for Project A, 20% of their time ($70,200 x 0.20 = $14,040) on grants administration, and 10% of their time ($70,200 x 0.10 = $7,020) on evaluation. Fringe benefits for this employee include health and dental care, life insurance, long-term disability, retirement, workers compensation, and agency personnel charges. Legal staff (FTE) will be responsible for drafting, execution, and filing fees of legal agreements and Memorandum of Understandings (MOUs) between organizations involved in the grant, including subgrantees. Legal hours also include time to conduct legal reviews for all contracts. Although this employee is FTE, they will only spend 70% of their time on Competitive Grant Program activities. The hourly rate has been prorated to reflect the division of effort ($428.57 * .7 = $300 pro-rated hourly rate). The legal staff will spend 100% of their time on grants administration. The applicant will provide $60,000 as a cash match to cover half of the legal staff's level of effort.
A22: B. Travel
A25: Purpose of Travel/Justification of Need | B25: Type of Travel (Domestic or International) | C25: No. of Days | D25: No. of Travelers | E25: Lodging per Traveler/per night | F25: Flight Cost per Traveler | G25: Vehicle Cost per Traveler | H25: Per Diem per Traveler | I25: Mileage Cost | J25: Miscellaneous | K25: Cost per Trip | L25: Matching Contribution | M25: Federal Request | N25: Total | O25: Used Federal Cost Estimation Tool? | P25: Basis of cost | Q25: Column1
A26: Digital Literacy Training Funds are requested for 2 employees to travel to X city for the Annual Digital Literacy Training series. | B26: Domestic | C26: 5 | D26: 2 | E26: 210 | F26: 120 | G26: 100 | H26: 201 | I26: 146.25 | J26: 60 | K26: 4336.25 | L26: 2850 | M26: 1486.25 | N26: 4336.25 | O26: Yes | P26: Lodging per Traveler/per night was calculated using the average price of X city for the planned kick-off dates. Figures are accurate as of application submission date. Flight per Traveler was calculated using the average price of an economy ticket from Y city to X city for the planned kick-off dates. Figures are accurate as of application submission date. Vehicle per Traveler was calculated using the average price of a basic car rental in X city. The total includes the flat price of the vehicle itself ($90) and insurance ($10): $90 + $10 = $100 Total Cost for Vehicle per Traveler). Per Diem per Traveler was calculated using the current GSA rates (https://www.gsa.gov/travel/plan-book/per-diem-rates). The listed $201 accounts for the cost of one traveler for one day. Mileage was calculated using the accompanying per mile cost for a basic car rental in Y city ($0.585 per mile) and multiplying it by the expected number of miles for the entire trip (250 miles): $0.59 * 250 = $146.25 Mileage cost for the trip. Miscellaneous costs account for potential variable costs such as parking, internet access, etc. with rates researched online for X city.
A27: Subgrantee Monitoring Funds are requested for 1 employee to travel to Z city to monitor subgrantee activities. | B27: Domestic | C27: 2 | D27: 1 | E27: 150 | F27: 0 | G27: 100 | H27: 79 | I27: 120 | J27: 30 | K27: 795 | L27: 397.5 | M27: 397.5 | N27: 795 | O27: Yes | P27: Lodging per Traveler/per night was calculated using the average price of Z city for the estimated monitoring dates. Figures are accurate as of application submission date. Flights will not be required. Vehicle per Traveler was calculated using the average price of a basic car rental in Z city. The total includes the flat price of the vehicle itself ($90) and insurance ($10): $90 + $10 = $100 Total Cost for Vehicle per Traveler). Per Diem per Traveler was calculated using the current GSA rates (https://www.gsa.gov/travel/plan-book/per-diem-rates). The listed $79 accounts for the cost of one traveler for one day. Mileage was calculated using the accompanying per mile cost for a basic car rental in Z city ($0.40 per mile) and multiplying it by the expected number of miles for the entire trip (300 miles): $0.40*300 = $120 Mileage cost for the trip. Miscellaneous costs account for potential variable costs such as parking, internet access, etc. with rates researched online for Z city.
K28: =(((C28-1)*E28)*D28)+(D28*F28)+(D28*G28)+(D28*H28*C28)+I28+J28 -> 0 | M28: =K28-L28 -> 0 | N28: =L28+M28 -> 0
K29: 0 | M29: 0 | N29: 0
K30: 0 | M30: 0 | N30: 0
K31: 0 | M31: 0 | N31: 0
K32: 0 | M32: 0 | N32: 0
K33: 0 | M33: 0 | N33: 0
K34: 0 | M34: 0 | N34: 0
K35: 0 | M35: 0 | N35: 0
K36: 0 | M36: 0 | N36: 0
K37: 0 | M37: 0 | N37: 0
K38: 0 | M38: 0 | N38: 0
K39: 0 | M39: 0 | N39: 0
K40: 0 | M40: 0 | N40: 0
A41: TOTAL TRAVEL | L41: =SUM(L26:L40) -> 3247.5 | M41: =SUM(M26:M40) -> 1883.75 | N41: =SUM(N26:N40) -> 5131.25
A42: Narrative (as needed)
A43: Digital Literacy Training costs will be 100% for programmatic purposes in support of Project A (no costs towards administration or evaluation). The applicant will provide match at the value of per diem ($201*2*5 = $2010) plus lodging ($210*4 = $840) (total match provided will be $2,850). The Subgrantee Monitoring trip will be entirely for administrative purposes. The applicant will provide a 50% cash match for the trip ($795*0.5 = $397.5).
A46: C. Equipment
A49: Equipment Item | B49: Qty | C49: Unit Cost | D49: Matching Contribution | E49: Federal Request | F49: Total Cost | G49: Basis of Cost | H49: Column1 | I49: Column2 | J49: Column3 | K49: Column4 | L49: Column5 | M49: Column6 | N49: Column7 | O49: Column8 | P49: Column9 | Q49: Column10
E50: =(B50*C50)-D50 -> 0 | F50: =D50+E50 -> 0
E51: 0 | F51: 0
E52: 0 | F52: 0
E53: 0 | F53: 0
E54: 0 | F54: 0
E55: 0 | F55: 0
E56: 0 | F56: 0
E57: 0 | F57: 0
E58: 0 | F58: 0
E59: 0 | F59: 0
E60: 0 | F60: 0
E61: 0 | F61: 0
E62: 0 | F62: 0
E63: 0 | F63: 0
A64: TOTAL EQUIPMENT | D64: =SUM(D50:D63) -> 0 | E64: =SUM(E50:E63) -> 0 | F64: =SUM(F50:F63) -> 0
A65: Narrative (as needed)
A69: D. Supplies
A72: General Category of Supplies | B72: Qty | C72: Unit Cost | D72: Matching Contribution | E72: Federal Request | F72: Total Cost | G72: Basis of Cost | H72: Column1 | I72: Column2 | J72: Column3 | K72: Column4 | L72: Column5 | M72: Column6 | N72: Column7 | O72: Column8 | P72: Column9 | Q72: Column10
A73: Office Supply Set | B73: 10 | C73: 29.99 | D73: 0 | E73: 299.9 | F73: 299.9 | G73: Online listing at [list URL here]
E74: =(B74*C74)-D74 -> 0 | F74: =D74+E74 -> 0
E75: 0 | F75: 0
E76: 0 | F76: 0
E77: 0 | F77: 0
E78: 0 | F78: 0
E79: 0 | F79: 0
E80: 0 | F80: 0
E81: 0 | F81: 0
E82: 0 | F82: 0
E83: 0 | F83: 0
E84: 0 | F84: 0
E85: 0 | F85: 0
E86: 0 | F86: 0
E87: 0 | F87: 0
A88: TOTAL SUPPLIES | D88: =SUM(D73:D87) -> 0 | E88: =SUM(E73:E87) -> 299.9 | F88: =SUM(F73:F87) -> 299.9
A89: Narrative (as needed)
A90: Office supplies will be used by office staff to carry out project objectives. 100% of the supplies will go towards administrative costs.
A93: E. Contractual-Subawards
A95: CONTRACTORS
A96: Contractor Name / Organization | B96: Project Description | C96: Basis of cost | D96: Value ($) | E96: Federal Request | F96: Total Cost | G96: Column11 | H96: Column1 | I96: Column2 | J96: Column3 | K96: Column4 | L96: Column5 | M96: Column6 | N96: Column7 | O96: Column8 | P96: Column9 | Q96: Column10
A97: Y City General Contractor | B97: Y City General Contractor is a general contractor who will assist with building 1500 sq foot public access computing center additions across libraries in the county, as part of Project A. | C97: Market research on general contractor quotes | D97: 100000 | E97: 100000 | F97: 100000 | P97: Column10
A98: Digital Literacy Advisors, LLC | B98: Digital Literacy Advisors, LLC will provide consultants to assist with digital literacy strategy development in support of Project C. | C98: Market research on consultant quotes | D98: 400000 | E98: 400000 | F98: 400000 | P98: Column11
E99: =F99 -> 0 | F99: =D99 -> 0 | O99: Column8 | P99: Column9 | Q99: Column10
E100: 0 | F100: 0 | O100: Column8 | P100: Column9 | Q100: Column10
E101: 0 | F101: 0 | O101: Column8 | P101: Column9 | Q101: Column10
E102: 0 | F102: 0 | O102: Column8 | P102: Column9 | Q102: Column10
E103: 0 | F103: 0 | O103: Column8 | P103: Column9 | Q103: Column10
E104: 0 | F104: 0 | O104: Column8 | P104: Column9 | Q104: Column10
E105: 0 | F105: 0 | O105: Column8 | P105: Column9 | Q105: Column10
E106: 0 | F106: 0 | O106: Column8 | P106: Column9 | Q106: Column10
E107: 0 | F107: 0 | O107: Column8 | P107: Column9 | Q107: Column10
E108: 0 | F108: 0 | O108: Column8 | P108: Column9 | Q108: Column10
E109: 0 | F109: 0 | O109: Column8 | P109: Column9 | Q109: Column10
E110: 0 | F110: 0 | O110: Column8 | P110: Column9 | Q110: Column10
E111: 0 | F111: 0 | O111: Column8 | P111: Column9 | Q111: Column10
E112: 0 | F112: 0
E113: 0 | F113: 0
A114: SUBTOTAL CONTRACTORS | E114: =SUM(E97:E113) -> 500000 | F114: =SUM(F97:F113) -> 500000
A116: SUBRECIPIENTS
A117: Subrecipient Name / Organization | B117: Project Description | C117: Value of Subaward ($) | D117: Basis of Cost | E117: Matching Contribution | F117: Type (Cash, In-Kind, or N/A) | G117: Source | H117: Federal Request | I117: Total Cost | J117: Column8 | K117: Column1 | L117: Column2 | M117: Column3 | N117: Column4 | O117: Column5 | P117: Column6 | Q117: Column7
A118: X City Public Library | B118: This subrecipient will be responsible for administering the entirety of Project B. | C118: 400000 | D118: Estimated cost of Project B | E118: 150000 | F118: In-Kind | G118: Subrecipient | H118: 400000 | I118: 550000
A119: State University | B119: This subrecipient will be responsible for implementing the entirety of Project C. | C119: 750000 | D119: Estimated cost of Project C | E119: 100000 | F119: Cash | G119: Subrecipient | H119: 750000 | I119: 850000
H120: =C120 -> 0 | I120: =(E120+H120) -> 0
H121: 0 | I121: 0
H122: 0 | I122: 0
H123: 0 | I123: 0
H124: 0 | I124: 0
H125: 0 | I125: 0
H126: 0 | I126: 0
H127: 0 | I127: 0
H128: 0 | I128: 0
H129: 0 | I129: 0
H130: 0 | I130: 0
H131: 0 | I131: 0
H132: 0 | I132: 0
H133: 0 | I133: 0
A134: SUBTOTAL SUBRECIPIENTS | E134: =SUM(Table734[Matching Contribution]) -> 250000 | H134: =SUM(H118:H133) -> 1150000 | I134: =SUM(I118:I133) -> 1400000
A136: TOTAL CONTRACTUAL-SUBAWARDS | E136: =E134 -> 250000 | H136: =E114+H134 -> 1650000 | I136: =F114+I134 -> 1900000
A137: Narrative (as needed)
A138: X City Public Library will provide in-kind contributions in terms of facilities valued at $150,000.
A141: F. Construction
A144: Purpose | B144: General Description | C144: # of Items | D144: Cost | E144: Matching Contribution | F144: Federal Request | G144: Total Cost | H144: Column1 | I144: Column2 | J144: Column3 | K144: Column4 | L144: Column5 | M144: Column6 | N144: Column7 | O144: Column8 | P144: Column9 | Q144: Column10
F145: =(C145*D145)-E145 -> 0 | G145: =E145+F145 -> 0
F146: 0 | G146: 0
F147: 0 | G147: 0
F148: 0 | G148: 0
F149: 0 | G149: 0
F150: 0 | G150: 0
F151: 0 | G151: 0
F152: 0 | G152: 0
F153: 0 | G153: 0
F154: 0 | G154: 0
F155: 0 | G155: 0
F156: 0 | G156: 0
F157: 0 | G157: 0
F158: 0 | G158: 0
F159: 0 | G159: 0
A160: TOTAL CONSTRUCTION | E160: =SUM(E145:E159) -> 0 | F160: =SUM(F145:F159) -> 0 | G160: =SUM(G145:G159) -> 0
A161: Narrative (as needed)
A165: G. Other
A168: General Description | B168: Quantity | C168: Cost | D168: Matching Contribution | E168: Federal Request | F168: Total Cost | G168: Column1 | H168: Column2 | I168: Column3 | J168: Column4 | K168: Column5 | L168: Column6 | M168: Column7 | N168: Column8 | O168: Column9 | P168: Column10 | Q168: Column11
A169: Project Management Training for Competitive Grant Program Staff | B169: 1 | C169: 7200 | D169: 3500 | E169: =(B169*C169)-D169 -> 3700 | F169: =D169+E169 -> 7200
E170: 0 | F170: 0
E171: 0 | F171: 0
E172: 0 | F172: 0
E173: 0 | F173: 0
E174: 0 | F174: 0
E175: 0 | F175: 0
E176: 0 | F176: 0
E177: 0 | F177: 0
E178: 0 | F178: 0
E179: 0 | F179: 0
E180: 0 | F180: 0
E181: 0 | F181: 0
E182: 0 | F182: 0
E183: 0 | F183: 0
A184: TOTAL OTHER | D184: =SUM(D169:D183) -> 3500 | E184: =SUM(E169:E183) -> 3700 | F184: =SUM(F169:F183) -> 7200
A185: Narrative (as needed)
A186: Annual Project Management Training conducted by XYZ Corporation or the Grant Manager. The training will cover project management areas necessary for the successful implementation and oversight of the Competitive Grant Program. The applicant will provide a $3,500 cash match.
A189: H. Indirect
A192: General Description | B192: Rate Period | C192: Indirect Cost Base ($) | D192: Indirect Cost Rate (%) | E192: Total Indirect Costs ($) | F192: Matching Contribution | G192: Federal Request | H192: Total Cost | I192: Column1 | J192: Column2 | K192: Column3 | L192: Column4 | M192: Column5 | N192: Column6 | O192: Column7 | P192: Column8 | Q192: Column9
A193: The applicant has a Federally-negotiated indirect cost rate agreement with an indirect cost rate of 13%. The indirect cost base is based on labor (salary and fringe benefits). | B193: Period of Performance | C193: 190200 | D193: 0.13 | E193: =C193*D193 -> 24726 | G193: =E193-F193 -> 24726 | H193: =F193+G193 -> 24726
E194: =C194*D194 -> 0 | G194: 0 | H194: 0
E195: 0 | G195: 0 | H195: 0
E196: 0 | G196: 0 | H196: 0
E197: 0 | G197: 0 | H197: 0
E198: 0 | G198: 0 | H198: 0
E199: 0 | G199: 0 | H199: 0
E200: 0 | G200: 0 | H200: 0
E201: 0 | G201: 0 | H201: 0
E202: 0 | G202: 0 | H202: 0
E203: 0 | G203: 0 | H203: 0
E204: 0 | G204: 0 | H204: 0
E205: 0 | G205: 0 | H205: 0
E206: 0 | G206: 0 | H206: 0
E207: 0 | G207: 0 | H207: 0
A208: TOTAL INDIRECT | F208: =SUM(F193:F207) -> 0 | G208: =SUM(G193:G207) -> 24726 | H208: =SUM(H193:H207) -> 24726
A209: Narrative (as needed)
A210: The indirect cost base is the sum of all salaries ($180,000) and fringe benefits ($10,200) charged to the grant during the grant year. The indirect costs are 100% administrative costs and will be subject to the administrative cost cap.

Sheet (Optional) Year 5 - Evaluation
A1: Budget Detail - (Optional) Year 5 - Evaluation Period
A4: A. Personnel
A6: Position Title | B6: Key Personnel | C6: Relevant Specific Project(s) | D6: Level of Effort | E6: Unit | F6: Unit Cost | G6: Subtotal Salary | H6: Fringe Benefits | I6: Fringe Rate | J6: Matching Contribution | K6: Federal Request | L6: Total | M6: Column2 | N6: Column3 | O6: Column4 | P6: Column5 | Q6: Column6
A7: Grant Manager | B7: Yes | C7: Project A, Project B, Project C | D7: 1 | E7: Annual | F7: 50000 | G7: =D7*F7 -> 50000 | H7: =Table12941[[#This Row],[Subtotal Salary]]*Table12941[[#This Row],[Fringe Rate]] -> 8500 | I7: 0.17 | J7: 25000 | K7: =G7+H7-J7 -> 33500 | L7: =J7+K7 -> 58500
G8: =D8*F8 -> 0 | H8: =Table12941[[#This Row],[Subtotal Salary]]*Table12941[[#This Row],[Fringe Rate]] -> 0 | K8: 0 | L8: 0
G9: 0 | H9: =Table12941[[#This Row],[Subtotal Salary]]*Table12941[[#This Row],[Fringe Rate]] -> 0 | K9: 0 | L9: 0
G10: 0 | H10: =Table12941[[#This Row],[Subtotal Salary]]*Table12941[[#This Row],[Fringe Rate]] -> 0 | K10: 0 | L10: 0
G11: 0 | H11: =Table12941[[#This Row],[Subtotal Salary]]*Table12941[[#This Row],[Fringe Rate]] -> 0 | K11: 0 | L11: 0
G12: 0 | H12: =Table12941[[#This Row],[Subtotal Salary]]*Table12941[[#This Row],[Fringe Rate]] -> 0 | K12: 0 | L12: 0
G13: 0 | H13: =Table12941[[#This Row],[Subtotal Salary]]*Table12941[[#This Row],[Fringe Rate]] -> 0 | K13: 0 | L13: 0
G14: 0 | H14: =Table12941[[#This Row],[Subtotal Salary]]*Table12941[[#This Row],[Fringe Rate]] -> 0 | K14: 0 | L14: 0
G15: 0 | H15: =Table12941[[#This Row],[Subtotal Salary]]*Table12941[[#This Row],[Fringe Rate]] -> 0 | K15: 0 | L15: 0
G16: 0 | H16: =Table12941[[#This Row],[Subtotal Salary]]*Table12941[[#This Row],[Fringe Rate]] -> 0 | K16: 0 | L16: 0
G17: 0 | H17: =Table12941[[#This Row],[Subtotal Salary]]*Table12941[[#This Row],[Fringe Rate]] -> 0 | K17: 0 | L17: 0
G18: 0 | H18: =Table12941[[#This Row],[Subtotal Salary]]*Table12941[[#This Row],[Fringe Rate]] -> 0 | K18: 0 | L18: 0
G19: 0 | H19: =Table12941[[#This Row],[Subtotal Salary]]*Table12941[[#This Row],[Fringe Rate]] -> 0 | K19: 0 | L19: 0
G20: 0 | H20: =Table12941[[#This Row],[Subtotal Salary]]*Table12941[[#This Row],[Fringe Rate]] -> 0 | K20: 0 | L20: 0
G21: 0 | H21: =Table12941[[#This Row],[Subtotal Salary]]*Table12941[[#This Row],[Fringe Rate]] -> 0 | K21: 0 | L21: 0
G22: =D22*F22 -> 0 | H22: =Table12941[[#This Row],[Subtotal Salary]]*Table12941[[#This Row],[Fringe Rate]] -> 0 | K22: 0 | L22: 0
G23: =D23*F23 -> 0 | H23: =Table12941[[#This Row],[Subtotal Salary]]*Table12941[[#This Row],[Fringe Rate]] -> 0 | K23: 0 | L23: 0
G24: =D24*F24 -> 0 | H24: =Table12941[[#This Row],[Subtotal Salary]]*Table12941[[#This Row],[Fringe Rate]] -> 0 | K24: 0 | L24: 0
G25: =D25*F25 -> 0 | H25: =Table12941[[#This Row],[Subtotal Salary]]*Table12941[[#This Row],[Fringe Rate]] -> 0 | K25: 0 | L25: 0
G26: =D26*F26 -> 0 | H26: =Table12941[[#This Row],[Subtotal Salary]]*Table12941[[#This Row],[Fringe Rate]] -> 0 | K26: 0 | L26: 0
A27: TOTAL PERSONNEL | G27: =SUM(G7:G26) -> 50000 | H27: =SUM(H7:H26) -> 8500 | J27: =SUM(J7:J26) -> 25000 | K27: =SUM(K7:K26) -> 33500 | L27: =SUM(L7:L26) -> 58500
A28: Narrative (as needed)
A29: The Grant Manager (FTE) will be responsible for all activities related to project evaluation, including compiling, reconciling, and managing the submission of reports and documents. The grant manager will spend 100% of their time on evaluation. Fringe benefits for this employee include health and dental care, life insurance, long-term disability, retirement, workers compensation, and agency personnel charges.
A32: B. Travel
A35: Purpose of Travel/Justification of Need | B35: Type of Travel (Domestic or International) | C35: No. of Days | D35: No. of Travelers | E35: Lodging per Traveler/per night | F35: Flight Cost per Traveler | G35: Vehicle Cost per Traveler | H35: Per Diem per Traveler | I35: Mileage Cost | J35: Miscellaneous | K35: Cost per Trip | L35: Matching Contribution | M35: Federal Request | N35: Total | O35: Used Federal Cost Estimation Tool? | P35: Basis of cost | Q35: Column1
A36: Project Evaluation Funds are requested for 1 employee to travel to Z city to evaluate project outcomes. | B36: Domestic | C36: 2 | D36: 1 | E36: 150 | F36: 0 | G36: 100 | H36: 79 | I36: 120 | J36: 30 | K36: =(((C36-1)*E36)*D36)+(D36*F36)+(D36*G36)+(D36*H36*C36)+I36+J36 -> 558 | M36: =K36-L36 -> 558 | N36: =L36+M36 -> 558 | P36: Lodging per Traveler/per night was calculated using the average price of Z city for the estimated monitoring dates. Figures are accurate as of application submission date. Flights will not be required. Vehicle per Traveler was calculated using the average price of a basic car rental in Z city. The total includes the flat price of the vehicle itself ($90) and insurance ($10): $90 + $10 = $100 Total Cost for Vehicle per Traveler). Per Diem per Traveler was calculated using the current GSA rates (https://www.gsa.gov/travel/plan-book/per-diem-rates). The listed $79 accounts for the cost of one traveler for one day. Mileage was calculated using the accompanying per mile cost for a basic car rental in Z city ($0.40 per mile) and multiplying it by the expected number of miles for the entire trip (300 miles): $0.40*300 = $120 Mileage cost for the trip. Miscellaneous costs account for potential variable costs such as parking, internet access, etc. with rates researched online for Z city.
K37: =(((C37-1)*E37)*D37)+(D37*F37)+(D37*G37)+(D37*H37*C37)+I37+J37 -> 0 | M37: 0 | N37: 0
K38: 0 | M38: 0 | N38: 0
K39: 0 | M39: 0 | N39: 0
K40: 0 | M40: 0 | N40: 0
K41: 0 | M41: 0 | N41: 0
K42: 0 | M42: 0 | N42: 0
K43: 0 | M43: 0 | N43: 0
K44: 0 | M44: 0 | N44: 0
K45: 0 | M45: 0 | N45: 0
K46: 0 | M46: 0 | N46: 0
K47: 0 | M47: 0 | N47: 0
K48: 0 | M48: 0 | N48: 0
K49: 0 | M49: 0 | N49: 0
K50: 0 | M50: 0 | N50: 0
A51: TOTAL TRAVEL | L51: =SUM(L36:L50) -> 0 | M51: =SUM(M36:M50) -> 558 | N51: =SUM(N36:N50) -> 558
A52: Narrative (as needed)
A56: C. Equipment
A59: Equipment Item | B59: Qty | C59: Unit Cost | D59: Matching Contribution | E59: Federal Request | F59: Total Cost | G59: Basis of Cost | H59: Column1 | I59: Column2 | J59: Column3 | K59: Column4 | L59: Column5 | M59: Column6 | N59: Column7 | O59: Column8 | P59: Column9 | Q59: Column10
E60: =(B60*C60)-D60 -> 0 | F60: =D60+E60 -> 0
E61: 0 | F61: 0
E62: 0 | F62: 0
E63: 0 | F63: 0
E64: 0 | F64: 0
E65: 0 | F65: 0
E66: 0 | F66: 0
E67: 0 | F67: 0
E68: 0 | F68: 0
E69: 0 | F69: 0
E70: 0 | F70: 0
E71: 0 | F71: 0
E72: 0 | F72: 0
E73: 0 | F73: 0
E74: 0 | F74: 0
A75: TOTAL EQUIPMENT | D75: =SUM(D60:D74) -> 0 | E75: =SUM(E60:E74) -> 0 | F75: =SUM(F60:F74) -> 0
A76: Narrative (as needed)
A80: D. Supplies
A83: General Category of Supplies | B83: Qty | C83: Unit Cost | D83: Matching Contribution | E83: Federal Request | F83: Total Cost | G83: Basis of Cost | H83: Column1 | I83: Column2 | J83: Column3 | K83: Column4 | L83: Column5 | M83: Column6 | N83: Column7 | O83: Column8 | P83: Column9 | Q83: Column10
E84: =(B84*C84)-D84 -> 0 | F84: =D84+E84 -> 0
E85: 0 | F85: 0
E86: 0 | F86: 0
E87: 0 | F87: 0
E88: 0 | F88: 0
E89: 0 | F89: 0
E90: 0 | F90: 0
E91: 0 | F91: 0
E92: 0 | F92: 0
E93: 0 | F93: 0
E94: 0 | F94: 0
E95: 0 | F95: 0
E96: 0 | F96: 0
E97: 0 | F97: 0
E98: 0 | F98: 0
A99: TOTAL SUPPLIES | D99: =SUM(D84:D98) -> 0 | E99: =SUM(E84:E98) -> 0 | F99: =SUM(F84:F98) -> 0
A100: Narrative (as needed)
A104: E. Contractual-Subawards
A106: CONTRACTORS
A107: Contractor Name / Organization | B107: Project Description | C107: Basis of cost | D107: Value ($) | E107: Federal Request | F107: Total Cost | G107: Column11 | H107: Column1 | I107: Column2 | J107: Column3 | K107: Column4 | L107: Column5 | M107: Column6 | N107: Column7 | O107: Column8 | P107: Column9 | Q107: Column10
E108: =F108 -> 0 | F108: =D108 -> 0
E109: 0 | F109: 0
E110: 0 | F110: 0
E111: 0 | F111: 0
E112: 0 | F112: 0
E113: 0 | F113: 0
E114: 0 | F114: 0
E115: 0 | F115: 0
E116: 0 | F116: 0
E117: 0 | F117: 0
E118: 0 | F118: 0
E119: 0 | F119: 0
E120: 0 | F120: 0
E121: 0 | F121: 0
E122: 0 | F122: 0
E123: 0 | F123: 0
A124: SUBTOTAL CONTRACTORS | E124: =SUM(E108:E123) -> 0 | F124: =SUM(F108:F123) -> 0
A126: SUBRECIPIENTS
A127: Subrecipient Name / Organization | B127: Project Description | C127: Value of Subaward ($) | D127: Basis of Cost | E127: Matching Contribution | F127: Type (Cash, In-Kind, or N/A) | G127: Source | H127: Federal Request | I127: Total Cost | J127: Column8 | K127: Column1 | L127: Column2 | M127: Column3 | N127: Column4 | O127: Column5 | P127: Column6 | Q127: Column7
H128: =C128 -> 0 | I128: =(E128+H128) -> 0
H129: 0 | I129: 0
H130: 0 | I130: 0
H131: 0 | I131: 0
H132: 0 | I132: 0
H133: 0 | I133: 0
H134: 0 | I134: 0
H135: 0 | I135: 0
H136: 0 | I136: 0
H137: 0 | I137: 0
H138: 0 | I138: 0
H139: 0 | I139: 0
H140: 0 | I140: 0
H141: 0 | I141: 0
H142: 0 | I142: 0
H143: 0 | I143: 0
H144: 0 | I144: 0
A145: SUBTOTAL SUBRECIPIENTS | E145: =SUM(Table73446[Matching Contribution]) -> 0 | H145: =SUM(H128:H144) -> 0 | I145: =SUM(I128:I144) -> 0
A147: TOTAL CONTRACTUAL-SUBAWARDS | E147: =E145 -> 0 | H147: =E124+H145 -> 0 | I147: =F124+I145 -> 0
A148: Narrative (as needed)
A152: F. Construction
A155: Purpose | B155: General Description | C155: # of Items | D155: Cost | E155: Matching Contribution | F155: Federal Request | G155: Total Cost | H155: Column1 | I155: Column2 | J155: Column3 | K155: Column4 | L155: Column5 | M155: Column6 | N155: Column7 | O155: Column8 | P155: Column9 | Q155: Column10
F156: =(C156*D156)-E156 -> 0 | G156: =E156+F156 -> 0
F157: 0 | G157: 0
F158: 0 | G158: 0
F159: 0 | G159: 0
F160: 0 | G160: 0
F161: 0 | G161: 0
F162: 0 | G162: 0
F163: 0 | G163: 0
F164: 0 | G164: 0
F165: 0 | G165: 0
F166: 0 | G166: 0
F167: 0 | G167: 0
F168: 0 | G168: 0
F169: 0 | G169: 0
F170: 0 | G170: 0
F171: 0 | G171: 0
A172: TOTAL CONSTRUCTION | E172: =SUM(E156:E171) -> 0 | F172: =SUM(F156:F171) -> 0 | G172: =SUM(G156:G171) -> 0
A173: Narrative (as needed)
A177: G. Other
A180: General Description | B180: Quantity | C180: Cost | D180: Matching Contribution | E180: Federal Request | F180: Total Cost | G180: Column1 | H180: Column2 | I180: Column3 | J180: Column4 | K180: Column5 | L180: Column6 | M180: Column7 | N180: Column8 | O180: Column9 | P180: Column10 | Q180: Column11
E181: =(B181*C181)-D181 -> 0 | F181: =D181+E181 -> 0
E182: 0 | F182: 0
E183: 0 | F183: 0
E184: 0 | F184: 0
E185: 0 | F185: 0
E186: 0 | F186: 0
E187: 0 | F187: 0
E188: 0 | F188: 0
E189: 0 | F189: 0
E190: 0 | F190: 0
E191: 0 | F191: 0
E192: 0 | F192: 0
E193: 0 | F193: 0
E194: 0 | F194: 0
E195: 0 | F195: 0
A196: TOTAL OTHER | D196: =SUM(D181:D195) -> 0 | E196: =SUM(E181:E195) -> 0 | F196: =SUM(F181:F195) -> 0
A197: Narrative (as needed)
A201: H. Indirect
A204: General Description | B204: Rate Period | C204: Indirect Cost Base ($) | D204: Indirect Cost Rate (%) | E204: Total Indirect Costs ($) | F204: Matching Contribution | G204: Federal Request | H204: Total Cost | I204: Column1 | J204: Column2 | K204: Column3 | L204: Column4 | M204: Column5 | N204: Column6 | O204: Column7 | P204: Column8 | Q204: Column9
E205: =C205*D205 -> 0 | G205: =E205-F205 -> 0 | H205: =F205+G205 -> 0
E206: =C206*D206 -> 0 | G206: 0 | H206: 0
E207: 0 | G207: 0 | H207: 0
E208: 0 | G208: 0 | H208: 0
E209: 0 | G209: 0 | H209: 0
E210: 0 | G210: 0 | H210: 0
E211: 0 | G211: 0 | H211: 0
E212: 0 | G212: 0 | H212: 0
E213: 0 | G213: 0 | H213: 0
E214: 0 | G214: 0 | H214: 0
E215: 0 | G215: 0 | H215: 0
E216: 0 | G216: 0 | H216: 0
E217: 0 | G217: 0 | H217: 0
E218: 0 | G218: 0 | H218: 0
E219: 0 | G219: 0 | H219: 0
A220: TOTAL INDIRECT | F220: =SUM(F205:F219) -> 0 | G220: =SUM(G205:G219) -> 0 | H220: =SUM(H205:H219) -> 0
A221: Narrative (as needed)

Sheet Matching
A1: Matching
A2: Record the cash or cash value of any intended instances of matching proposed by the eligible entity or by third party contributors in the table below. Please do NOT enter any matching funding provided by a subrecipient on this tab. All matching funding provided by a subrecipient should be entered within the "SUBRECIPIENTS" section on the Years 1-4 and (Optional) Year 5 - Evaluation tabs.
A4: Organization/Source | B4: Type | C4: Cost Share Item/Description (Required for In-Kind Match) E.g., use of a facility, providing tablets to be used in Project A, etc. | D4: Source Type | E4: Value | F4: Share Value of Total Award Cost
A5: Applicant | B5: Cash | C5: N/A | D5: Local | E5: 291990 | F5: =IFERROR(Table37[[#This Row],[Value]]/('Budget Overview'!$S$20),0) -> 0.02743433115
F6: =IFERROR(Table37[[#This Row],[Value]]/('Budget Overview'!$S$20),0) -> 0
F7: =IFERROR(Table37[[#This Row],[Value]]/('Budget Overview'!$S$20),0) -> 0
F8: =IFERROR(Table37[[#This Row],[Value]]/('Budget Overview'!$S$20),0) -> 0
F9: =IFERROR(Table37[[#This Row],[Value]]/('Budget Overview'!$S$20),0) -> 0
F10: =IFERROR(Table37[[#This Row],[Value]]/('Budget Overview'!$S$20),0) -> 0
F11: =IFERROR(Table37[[#This Row],[Value]]/('Budget Overview'!$S$20),0) -> 0
F12: =IFERROR(Table37[[#This Row],[Value]]/('Budget Overview'!$S$20),0) -> 0
A13: TOTAL MATCHING | E13: =SUM(Table37[Value]) -> 291990 | F13: =SUM(Table37[Share Value of Total Award Cost]) -> 0.02743433115
A14: Narrative (as needed)

Sheet Related Outside Funding
A1: Related Outside Funding
A2: Record the source and amount of other Federal, State, or outside funding sources the entity receives, or has applied for, that fund the activities or projects to which the application relates. This includes any funding requests through the Digital Equity Capacity Grant Program, the Tribal Broadband Connectivity Program (TBCP), and the Broadband Equity Access and Deployment (BEAD) Program. Please see Section IV B (15) of the DE Competitive NOFO for more information.
A4: Organization/Source | B4: Funding Description | C4: Source Type | D4: Received / Anticipated (i.e., applied for) | E4: Amount
A5: National Telecommunications and Information Administration | B5: Applied to be a subrecipient of the State Digital Equity Capacity Grant Program in X state. | C5: Federal | D5: Anticipated | E5: 500000
A10: TOTAL RELATED OUTSIDE FUNDING | E10: =SUM(Table39[Amount]) -> 500000
A11: Narrative (as needed)
A12: The activities proposed in our application to be a subrecipient to the State Digital Equity Capacity Grant focus on online safety trainings which supplements but does not supplant the activities proposed in this application.

Sheet Projects Overview
A1: Projects Overview
A2: List all of the projects included in your application (i.e., the discrete activities/interventions to be implemented) below, and provide budget information that will be allocated to that project for each project year. Note that the information on this tab is not calculated based on other entries and must be manually input below. The Total Amount Allocated is the total amount of funding designated for the specific project in each Project Year. The Amount to be Subgranted is the amount of funding designated for the specific project that will be subgranted for each Project Year. The Total Amount to be Implemented Directly is the total amount of funding the eligible entity intends to implement without subgranted funds designated for the specific project for each Project Year.
D4: Project Year 1 | G4: Project Year 2 | J4: Project Year 3 | M4: Project Year 4 | P4: TOTAL
A5: Project Name | B5: Project ID | C5: Brief Project Description | D5: Total Amount Allocated | E5: Amount to be Subgranted | F5: Amount to be Implemented Directly | G5: Total Amount Allocated | H5: Amount to be Subgranted | I5: Amount to be Implemented Directly | J5: Total Amount Allocated | K5: Amount to be Subgranted | L5: Amount to be Implemented Directly | M5: Total Amount Allocated | N5: Amount to be Subgranted | O5: Amount to be Implemented Directly | P5: Total Amount Allocated
A6: Project A | B6: LeadApplicant-01 | C6: Narrative | D6: 814609.4 | E6: 0 | F6: 814609.4 | G6: 803476.25 | H6: 0 | I6: 803476.25 | J6: 303476.25 | K6: 0 | L6: 303476.25 | M6: 153476.25 | N6: 0 | O6: 153476.25 | P6: =SUM(D6,G6,J6,M6) -> 2075038.15
A7: Project B | D7: 850000 | E7: 850000 | F7: 0 | G7: 850000 | H7: 850000 | I7: 0 | J7: 550000 | K7: 550000 | M7: 550000 | N7: 550000 | P7: 2800000
A8: Project C | D8: 1250000 | E8: 850000 | F8: 400000 | G8: 1250000 | H8: 850000 | I8: 400000 | J8: 1250000 | K8: 850000 | L8: 400000 | M8: 1250000 | N8: 850000 | O8: 400000 | P8: 5000000
P9: 0
P10: 0
P11: 0
P12: 0
P13: 0
P14: 0
P15: 0
P16: 0
P17: 0
P18: 0
P19: 0
P20: 0
P21: 0
A22: Totals | D22: =SUM(Table3850[Total Amount Allocated]) -> 2914609.4 | E22: =SUM(Table3850[Amount to be Subgranted]) -> 1700000 | F22: =SUM(Table3850[Amount to be Implemented Directly]) -> 1214609.4 | G22: =SUM(Table3850[[Total Amount Allocated ]]) -> 2903476.25 | H22: =SUM(Table3850[[Amount to be Subgranted ]]) -> 1700000 | I22: =SUM(Table3850[[Amount to be Implemented Directly ]]) -> 1203476.25 | J22: =SUM(Table3850[[ Total Amount Allocated]]) -> 2103476.25 | K22: =SUM(Table3850[[ Amount to be Subgranted]]) -> 1400000 | L22: =SUM(Table3850[[ Amount to be Implemented Directly]]) -> 703476.25 | M22: =SUM(Table3850[[ Total Amount Allocated ]]) -> 1953476.25 | N22: =SUM(Table3850[[ Amount to be Subgranted ]]) -> 1400000 | O22: =SUM(Table3850[[ Amount to be Implemented Directly ]]) -> 553476.25 | P22: =SUM(Table3850[[ Total Amount Allocated ]]) -> 9875038.15
